Cogmind - Beta 10.2 @@@ ROGUE MODE // 2021.01.03 @ 22:53:01 Player: blelm Result: Establishing 0b11! Performance ------------- Evolutions (9) 4500 Regions Visited (35) 7000 Robots Destroyed (751) 3755 Value Destroyed (42440) 42440 Prototype IDs (89) 1780 Alien Tech Used (2) 400 Bonus (45937) 45937 TOTAL SCORE: 105812 Bonus ------- Triggered High Security 500 High Alert Combat Kills 22357 Follower Combat Kills 915 Network Hubs Disabled 200 Aligned with FarCom 300 Met Imprinter 300 Met Zhirov 300 Built Enhanced Grunts 300 A7 Reached Mainframe 300 Met R17 at Cetus 500 Found Hidden Lab 3000 Met R17 at Research 2000 Scanned by Researcher 500 Destroyed MAIN.C Guards 500 Met MAIN.C 5000 Destroyed MAIN.C Shell 5000 Destroyed MAIN.C 10000 Win 3000 Friendly Fire -9035 Cogmind --------- Core Integrity 1227/1600 Matter 300/300 Energy 2476/2490 System Corruption 4% Temperature Cool (12) Movement Treading (185) Ox1 Location 0b11 Command Parts ------- > --- POWER (2) -------- Improved Quantum Reactor Zero-point Reactor > --- PROPULSION (4) --- Advanced Heavy Siege Treads High-density Centrium Heavy Treads > --- UTILITY (16) ----- Experimental Cooling System Experimental Cooling System High-capacity Storage Unit High-capacity Storage Unit High-capacity Storage Unit Experimental Energy Well Experimental Energy Well Experimental Targeting Computer Advanced Armor Integrity Analyzer Advanced Weapon Cycler Centrium Heavy Armor Plating Experimental Powered Armor Experimental Powered Armor Advanced Force Field Long-range Tractor Beam > --- WEAPON (4) ------- EMDS Helical Railgun Helical Railgun > --- INVENTORY (28) --- Reinforced Quantum Reactor Reinforced Quantum Reactor Armored Heavy Treads Armored Heavy Treads Experimental Energy Well (1000) Matter Compressor (250) Experimental Matter Compressor (500) Matter Filter Improved Kinecellerator Advanced Transmission Jammer Centrium Medium Armor Plating Centrium Medium Armor Plating Improved Focal Shield Beam Splitter Advanced Force Field Advanced Field Recycling Unit (300) Transdimensional Reconstructor Enhanced Nova Cannon Improved KE Penetrator Improved KE Penetrator Helical Railgun Multirail Multirail Linear Accelerator Linear Accelerator Fusion Bomb Launcher Peak State ------------ > --- POWER ------------ Improved Quantum Reactor Zero-point Reactor > --- PROPULSION ------- Advanced Heavy Siege Treads High-density Centrium Heavy Treads > --- UTILITY ---------- Experimental Cooling System Experimental Cooling System High-capacity Storage Unit High-capacity Storage Unit High-capacity Storage Unit Experimental Energy Well Experimental Energy Well Experimental Targeting Computer Advanced Armor Integrity Analyzer Advanced Weapon Cycler Centrium Heavy Armor Plating Experimental Powered Armor Experimental Powered Armor Advanced Force Field Long-range Tractor Beam > --- WEAPON ----------- Helical Railgun Helical Railgun Multirail Multirail > --- INVENTORY -------- Reinforced Quantum Reactor Reinforced Quantum Reactor Armored Heavy Treads Armored Heavy Treads Experimental Energy Well Matter Compressor Experimental Matter Compressor Matter Filter Improved Kinecellerator Advanced Transmission Jammer Centrium Medium Armor Plating Centrium Medium Armor Plating Improved Focal Shield Beam Splitter Advanced Force Field Advanced Field Recycling Unit Transdimensional Reconstructor EMDS Enhanced Nova Cannon Improved KE Penetrator Improved KE Penetrator Helical Railgun Linear Accelerator Linear Accelerator Fusion Bomb Launcher [Rating: 232] Favorites ----------- Power Reinforced Quantum Reactor Engine Improved Deuterium Engine Reactor Reinforced Quantum Reactor Propulsion Advanced Heavy Siege Treads Treads Advanced Heavy Siege Treads Leg Aluminum Leg Wheel Compact Wheel Utility High-capacity Storage Unit Device Experimental Cooling System Storage High-capacity Storage Unit Processor Experimental Terrain Scan Processor Hackware Improved Hacking Suite Protection Centrium Medium Armor Plating Weapon Improved KE Penetrator Energy Gun Small Laser Energy Cannon EMDS Ballistic Gun Improved KE Penetrator Ballistic Cannon Light Antimatter Cannon Launcher Ragnarok Missile Launcher Special Weapon Mining Laser Slashing Weapon Chainsword Piercing Weapon Enhanced Force Lance Build | -11 -10 -10 -9 -9 -9 -8 -8 -7 -7 -7 -7 -6 -6 -6 -6 -6 -6 -6 -6 -5 -5 -5 -5 -5 -5 -4 -4 -4 -4 -4 -4 -3 -2 -1 -1 ------- Run | Scr Mat Min Mat Min Exi Min Mat Fac Low Low Zio Pro Fac Was Fac Ext Cet Arc Hub Fac Was Fac Upp Upp Zhi Pro Fac Was Fac Arm Lab Res Res Acc Com Slots Evolved 18 | . . . 2 . . . 2 2 . . . . 2 . . . . . . 2 . . . . . . 2 . . . . 2 2 2 . Power 1 | . . . . . . . . . . . . . . . . . . . . . . . . . . . . . . . . 1 . . . Propulsion 2 | . . . . . . . 1 . . . . . . . . . . . . 1 . . . . . . . . . . . . . . . Utility 13 | . . . 2 . . . 1 2 . . . . 2 . . . . . . 1 . . . . . . 1 . . . . 1 2 1 . Weapon 2 | . . . . . . . . . . . . . . . . . . . . . . . . . . . 1 . . . . . . 1 . Parts Attached 773 | . 11 4 10 6 1 11 25 45 15 6 8 7 40 6 31 13 12 6 22 11 13 17 9 5 6 10 34 1 26 56 10 48 29 50 169 Power 24 | . 1 . 1 . . 1 2 3 . . . . 1 1 . . . . 1 . 1 2 . . 2 . . . . . . 2 . 1 5 Engine 9 | . 1 . 1 . . 1 2 3 . . . . 1 . . . . . . . . . . . . . . . . . . . . . . Core . | . . . . . . . . . . . . . . . . . . . . . . . . . . . . . . . . . . . . Reactor 15 | . . . . . . . . . . . . . . 1 . . . . 1 . 1 2 . . 2 . . . . . . 2 . 1 5 Propulsion 53 | . 2 1 3 . . 1 5 3 2 . . . 4 . 2 3 1 2 1 1 1 . . . . . 3 . . 3 2 3 1 . 9 Treads 47 | . . . 2 . . 1 5 3 2 . . . 2 . 2 3 1 2 1 1 1 . . . . . 3 . . 3 2 3 1 . 9 Leg 4 | . 2 1 1 . . . . . . . . . . . . . . . . . . . . . . . . . . . . . . . . Wheel 2 | . . . . . . . . . . . . . 2 . . . . . . . . . . . . . . . . . . . . . . Hover . | . . . . . . . . . . . . . . . . . . . . . . . . . . . . . . . . . . . . Flight . | . . . . . . . . . . . . . . . . . . . . . . . . . . . . . . . . . . . . Utility 416 | . 2 1 2 . 1 4 5 20 9 4 8 5 23 4 14 7 3 . 9 3 9 10 5 4 4 7 18 1 15 27 6 35 11 32 108 Device 252 | . . . . . . . . 6 5 2 3 3 10 3 11 4 . . 6 2 7 10 2 1 3 2 8 . 14 25 3 29 10 17 66 Storage 35 | . 2 1 1 . 1 1 4 . . . . . . . 2 1 . . . . . . . . . . 4 . 1 . . 3 . 1 13 Processor 13 | . . . . . . . . 2 . . 4 . . . 1 . . . . . . . . . . . 1 . . 1 . 1 . 2 1 Hackware 4 | . . . . . . . . . . . . . 1 . . . . . . 1 . . . . . . 1 . . . . 1 . . . Protection 112 | . . . 1 . . 3 1 12 4 2 1 2 12 1 . 2 3 . 3 . 2 . 3 3 1 5 4 1 . 1 3 1 1 12 28 Artifact . | . . . . . . . . . . . . . . . . . . . . . . . . . . . . . . . . . . . . Weapon 280 | . 6 2 4 6 . 5 13 19 4 2 . 2 12 1 15 3 8 4 11 7 2 5 4 1 . 3 13 . 11 26 2 8 17 17 47 Energy Gun 5 | . 1 . . . . . 1 . . . . . . . . . 1 . . . . . . . . . . . . . . . . . 2 Energy Cannon 82 | . . . . . . . . 3 1 . . . . . 6 1 1 . 6 4 1 3 . . . 1 3 . 5 10 . 5 8 6 18 Ballistic Gun 127 | . 3 2 3 2 . 3 7 6 1 1 . 1 6 . 7 2 3 4 4 2 . 2 2 1 . 1 8 . 4 13 2 3 7 10 17 Ballistic Cannon 2 | . . . . . . . . . . . . . . . . . . . . . . . . . . . . . . 1 . . . . 1 Launcher 35 | . 1 . . 3 . 2 3 2 . . . . 1 . . . 3 . 1 . . . 2 . . 1 1 . 2 1 . . 2 1 9 Special Weapon 8 | . 1 . 1 1 . . 2 . . . . . . . . . . . . 1 . . . . . . 1 . . 1 . . . . . Impact Weapon . | . . . . . . . . . . . . . . . . . . . . . . . . . . . . . . . . . . . . Slashing Weapon 20 | . . . . . . . . 8 2 1 . 1 5 1 2 . . . . . . . . . . . . . . . . . . . . Piercing Weapon 1 | . . . . . . . . . . . . . . . . . . . . . 1 . . . . . . . . . . . . . . Special Melee Weapon . | . . . . . . . . . . . . . . . . . . . . . . . . . . . . . . . . . . . . Unidentified Prototypes 47 | . . . . . . . 2 1 . . 5 . 1 . . 1 4 . 1 1 . . . . 4 . 1 . . 1 2 9 . 1 13 Parts Lost 35 | . 5 2 2 . . 6 . . . . . . 3 . . . . . 1 . 1 . 1 . . . . . . . . . . 1 13 Power 3 | . 1 . . . . 1 . . . . . . . . . . . . 1 . . . . . . . . . . . . . . . . Propulsion 6 | . . 1 1 . . 1 . . . . . . 2 . . . . . . . . . . . . . . . . . . . . . 1 Utility 14 | . . . . . . 2 . . . . . . 1 . . . . . . . 1 . 1 . . . . . . . . . . 1 8 Weapon 12 | . 4 1 1 . . 2 . . . . . . . . . . . . . . . . . . . . . . . . . . . . 4 Highest Loss Streak 7 | . 2 1 2 . . 4 . . . . . . 2 . . . . . 1 . 1 . 1 . . . . . . . . . . 1 7 Average Slot Usage (%) 86 | . 94 98 98 100 100 99 99 97 100 100 99 100 93 86 80 81 88 93 89 87 80 75 87 86 87 86 82 78 77 76 75 77 79 82 83 Engine 2 | . 13 14 11 11 11 11 9 7 7 7 7 7 6 . . . . . . . . . . . . . . . . . . . . . . Reactor 4 | . . . . . . . . . . . . . . 5 6 6 6 6 6 5 5 5 5 5 5 5 5 5 5 5 5 9 8 7 7 Treads 11 | . . . 3 22 22 21 27 23 23 23 23 23 20 6 11 13 13 13 13 17 13 11 11 11 11 11 9 10 10 9 9 9 8 7 6 Leg 1 | . 28 27 18 . . . . . . . . . . . . . . . . . . . . . . . . . . . . . . . . Wheel 1 | . . . . . . . . . . . . . . 13 1 . . . . . . . . . . . . . . . . . . . . Device 10 | . . . . . . . . 6 14 14 14 14 6 6 5 5 6 6 6 5 5 5 6 8 10 5 5 5 5 4 5 9 15 17 19 Storage 20 | . 23 28 33 33 33 33 26 23 23 23 23 23 20 20 20 20 20 20 20 17 17 17 17 17 17 17 17 21 21 21 20 18 16 15 18 Processor 8 | . . . . . . . . 6 7 7 9 15 13 13 13 13 13 13 13 11 11 11 11 11 11 11 10 10 10 10 10 9 8 11 7 Hackware 2 | . . . . . . . . . . . . . 5 . . . . . . 4 5 5 5 5 5 5 7 5 5 5 5 8 8 7 . Protection 7 | . . . 9 11 11 10 18 13 7 7 4 . 7 6 6 7 15 20 16 11 6 5 15 11 11 16 10 5 5 5 4 4 4 3 7 Energy Cannon 2 | . . . . . . . . . . . . . . . 1 . 1 . 3 4 4 4 1 . . . 4 . 3 4 5 8 6 5 4 Ballistic Gun 8 | . 14 5 21 13 11 20 17 10 9 8 7 8 8 7 9 12 8 13 8 4 5 4 6 10 11 6 5 15 10 8 10 1 2 3 6 Slashing Weapon 1 | . . . . . . . . 3 3 5 7 5 3 5 1 . . . . . . . . . . . . . . . . . . . . Naked Turns . | . . . . . . . . . . . . . . . . . . . . . . . . . . . . . . . . . . . . Heaviest Build 278 | 11 42 57 85 86 83 88 110 122 117 108 107 109 125 150 172 172 150 149 173 161 188 193 188 188 159 165 234 223 234 234 227 266 269 271 278 Greatest Support 170 | 20 20 20 40 40 40 40 60 68 76 76 76 76 76 32 90 100 110 110 110 138 160 160 160 160 160 160 160 155 155 155 155 155 140 140 170 Greatest Overweight (x) 81 | . 2 5 4 2 2 2 1 1 1 1 1 1 3 49 7 1 1 1 1 1 1 1 1 1 . 1 2 1 1 1 1 3 1 1 81 Average Overweight (x) 1 | . 1 2 3 2 2 1 1 1 1 1 1 1 1 19 1 1 1 1 1 1 1 1 . . . . 1 1 1 1 1 1 1 1 2 Largest Inventory Capacity 36 | 6 16 18 24 24 24 24 26 26 26 26 26 26 26 26 28 28 28 28 28 28 28 28 28 28 28 28 36 36 36 36 36 36 36 36 36 Average Capacity 29 | 6 12 17 24 24 24 24 24 26 26 26 26 26 26 26 26 28 28 28 28 28 28 28 28 28 28 28 31 36 36 36 36 36 36 36 34 Most Carried 36 | 6 10 13 21 20 23 23 24 26 26 26 26 26 26 26 28 28 28 28 28 28 28 28 28 27 28 28 32 36 36 36 36 36 36 36 36 Average Carried 27 | 6 6 12 16 18 21 21 21 25 26 25 25 25 25 25 26 27 27 27 27 27 27 27 27 26 27 27 28 33 35 35 32 35 34 35 28 Final Capacity 36 | 6 16 18 24 24 24 24 26 26 26 26 26 26 26 26 28 28 28 28 28 28 28 28 28 28 28 28 36 36 36 36 36 36 36 36 36 Final Carried 36 | 6 10 11 18 20 23 19 23 26 26 26 26 26 26 26 28 28 28 28 28 28 28 28 27 27 28 28 30 36 36 36 36 36 36 36 36 Class Distribution -------------------- 37% | Hauler-Mutant 15% | Scavenger-Mutant 11% | Hauler-Assassin 11% | Hauler-Skirmisher 9% | Hacker-Mutant 6% | Hauler-Tank 4% | Mutant Dominant Class ---------------- Mutant | -10/Materials Mutant | -10/Mines Hauler-Mutant | -9/Materials Hauler-Mutant | -9/Mines Hauler-Mutant | -9/Exiles Hauler-Mutant | -8/Mines Hauler-Mutant | -8/Materials Hauler-Assassin | -7/Factory Hauler-Assassin | -7/Lower Caves Hauler-Assassin | -7/Lower Caves Hauler-Assassin | -7/Zion Hauler-Assassin | -6/Proximity Caves Hauler-Assassin | -6/Factory Hauler-Mutant | -6/Waste Hauler-Skirmisher | -6/Factory Hauler-Skirmisher | -6/Extension Scavenger-Mutant | -6/Cetus Scavenger-Mutant | -6/Archives Scavenger-Mutant | -6/Hub_04(d) Hauler-Mutant | -5/Factory Hauler-Mutant | -5/Waste Hauler-Mutant | -5/Factory Scavenger-Mutant | -5/Upper Caves Scavenger-Mutant | -5/Upper Caves Scavenger-Mutant | -5/Zhirov Hauler-Mutant | -4/Proximity Caves Hauler-Mutant | -4/Factory Hauler-Skirmisher | -4/Waste Hauler-Mutant | -4/Factory Hauler-Mutant | -4/Armory Hauler-Mutant | -4/Lab Hacker-Mutant | -3/Research Hacker-Mutant | -2/Research Hacker-Mutant | -1/Access Scavenger-Mutant | -1/Command Resources | -11 -10 -10 -9 -9 -9 -8 -8 -7 -7 -7 -7 -6 -6 -6 -6 -6 -6 -6 -6 -5 -5 -5 -5 -5 -5 -4 -4 -4 -4 -4 -4 -3 -2 -1 -1 ----------- Run | Scr Mat Min Mat Min Exi Min Mat Fac Low Low Zio Pro Fac Was Fac Ext Cet Arc Hub Fac Was Fac Upp Upp Zhi Pro Fac Was Fac Arm Lab Res Res Acc Com Matter Collected 29001 | 200 370 148 361 175 20 247 654 887 188 130 102 140 1232 351 985 414 330 298 913 225 152 277 221 212 118 282 745 282 1122 1634 150 1233 600 1709 11894 Remotely 7152 | . . . . . . . . . . . . . 134 . . . . . . . . 109 8 . . 72 194 . 208 425 . . 331 568 5103 Salvage Created 37673 | 80 794 127 657 184 . 376 1032 687 103 47 . 36 1085 1730 776 388 658 307 1343 477 1407 418 257 245 339 457 727 1613 1254 1622 . 1272 755 4140 12280 Parts 1434 | . 59 16 51 17 . 19 53 33 3 5 . 3 62 29 36 18 21 14 49 19 49 10 21 16 1 18 33 34 55 74 . 38 52 140 386 Haulers Intercepted 10 | . 1 . 1 . . . 4 . . . . . . . . . . . 1 1 . . . . . . 1 . . . . . . 1 . Recyclers Shooed 8 | . 1 . . . . 1 2 1 . . . . 1 . 2 . . . . . . . . . . . . . . . . . . . . Parts Field Recycled 28 | . . . . . . . . . . . . . . . . . . . . . . . . . . . . . . . . . . . 28 Retrieved Matter 702 | . . . . . . . . . . . . . . . . . . . . . . . . . . . . . . . . . . . 702 Parts Self-Destructed 52 | . . . . . . . . . 2 5 . 5 . . . . . . . . . . 18 16 1 5 . . . . . . . . . Prevented 9 | . . . . . . . . . 1 . . . . . . . . . . . . . . . . 8 . . . . . . . . . Kills | -11 -10 -10 -9 -9 -9 -8 -8 -7 -7 -7 -7 -6 -6 -6 -6 -6 -6 -6 -6 -5 -5 -5 -5 -5 -5 -4 -4 -4 -4 -4 -4 -3 -2 -1 -1 ------- Run | Scr Mat Min Mat Min Exi Min Mat Fac Low Low Zio Pro Fac Was Fac Ext Cet Arc Hub Fac Was Fac Upp Upp Zhi Pro Fac Was Fac Arm Lab Res Res Acc Com Combat Hostiles Destroyed 621 | . 25 8 9 10 . 9 16 11 2 1 . 1 14 6 13 5 8 3 18 3 . 6 15 7 . 11 9 6 23 23 . 18 16 49 276 Melee 3 | . . . . . . 1 . . . . . . . . . . . . . . . . . . . . . . . . . . . . 2 Guns 192 | . 11 . 9 4 . 5 9 5 1 1 . 1 11 6 11 5 . 3 14 2 . 2 2 7 . 2 7 6 11 12 . . 5 9 31 Cannons 59 | . . . . . . . . 2 1 . . . . . 1 . 1 . 1 1 . 1 . . . 1 . . 3 3 . 9 3 17 15 AOE 273 | . 13 8 . 6 . 3 7 3 . . . . 3 . . . 2 . . . . . 13 . . 5 . . 6 3 . . 8 3 190 Classes Destroyed 27 | 1 6 1 3 1 . 1 . 1 . . . . 1 1 1 . . . . . 2 . . . . . . . . 1 . 3 . . 4 Worker 15 | . . . 1 . . . . 3 . . . . 1 . 1 . . . 2 . . . . . . . . . 1 . . . 1 1 4 Builder 13 | . 2 . 1 . . . 1 . . . . . 2 . 1 . . . . . . . . . . . 1 . 1 . . . 3 1 . Tunneler 8 | . . 1 1 3 . . . . . . . . 2 . . . . . . . . . . . . . . . 1 . . . . . . Hauler 10 | . 1 . 1 . . . 4 . . . . . . . . . . . 1 1 . . . . . . 1 . . . . . . 1 . Recycler 17 | 1 . 1 2 . . . 3 2 . . . . 3 . . . . . . 1 . . . . . . . . 1 . . . . 1 2 Carrier 2 | . . . . . . . . . . . . . . . . . . . . . . . . . . . . . . . . . . . 2 Mechanic 11 | . . . . . . . . . . . . . . . . . . . . . . . . . . . . . . . . . . . 11 Operator 5 | . 3 . . . . . . . . . . . . . . . . 1 . . . . . . . . . . . . . . . . 1 Watcher 25 | . 2 . 2 . . . . . . . . . . . . . 1 . 1 1 . 1 . . . . 1 . . 4 . 1 1 2 8 Swarmer 96 | . 3 8 2 3 . 3 7 3 . . . . 3 . . . . . . . . . 14 5 . 5 . . 8 . . 3 9 1 19 Saboteur 20 | . . . . . . . . . . . . . . . . . . . . . . . . . . . . . . . . . . . 20 Grunt 203 | . 22 . 3 5 . 5 4 1 1 . . . 6 . 5 2 3 . 9 . . 3 . . . 4 2 . 5 6 . . . 16 101 Brawler 16 | . . . 1 . . . . . . . . . . . . . . . 1 . . 1 . . . . . . . . . . . . 13 Duelist 16 | . . . . . . 1 1 . . . . . . . . . . . . . . . . . . . . . . 3 . . . 2 9 Protector 15 | . . . . . . . . . . . . . . . . . . . . . . . . . . . . . . 1 . . . 1 13 Sentry 38 | . . . 3 . . . 4 3 . . . . . . 2 2 . 3 2 1 . . . . . . . . 4 3 . . 2 3 6 Demolisher 2 | . . . . . . . . . . . . . . . . . . . . . . . . . . . . . . . . 2 . . . Hunter 36 | . . . . . . . . . . . . . . . 3 . . . 3 . . . . . . . 2 . . . . 2 . 17 9 Programmer 102 | . . . . . . . . 4 1 1 . 1 4 . 3 . . . . 2 . 2 . 2 . 2 5 . 6 10 . . 5 9 45 Behemoth 6 | . . . . . . . . . . . . . 1 . . 1 . . . . . . 1 . . . . . . 1 . . . . 2 Compactor 12 | . . . . . . . . . . . . . . 6 . . . . . . . . . . . . . 6 . . . . . . . Cetus Guard 5 | . . . . . . . . . . . . . . . . . 5 . . . . . . . . . . . . . . . . . . M Guard 2 | . . . . . . . . . . . . . . . . . . . . . . . . . . . . . . . . . . . 2 Lightning 3 | . . . . . . . . . . . . . . . . . . . 3 . . . . . . . . . . . . . . . . Combat Programmer 2 | . . . . . . . . . . . . . . . . . . . . . . . . . . . . . . . . . . . 2 Investigator 2 | . . . . . . . . . . . . . . . . . . . . . . . . . . . . . . . . . . . 2 Striker 23 | . . . . . . . . . . . . . . . . . . . . . . . . . . . . . . . . 7 . . 16 Executioner 19 | . . . . . . . . . . . . . . . . . . . . . . . . . . . . . . . . 4 . . 15 Alpha 7 2 | . . . . . . . . . . . . . . . . . . . . . . . . . . . . . . . . . . . 2 Assembled 2 | . . . . 2 . . . . . . . . . . . . . . . . . . . . . . . . . . . . . . . Surgeon 2 | . . . . . . . . . . . . . . . . . . . . . 2 . . . . . . . . . . . . . . Wasp 8 | . . . . . . . . . . . . . . . . . . . . . 8 . . . . . . . . . . . . . . Thug 6 | . . . . . . . . . . . . . . . . . . . . . 6 . . . . . . . . . . . . . . Butcher 1 | . . . . . . . . . . . . . . . . 1 . . . . . . . . . . . . . . . . . . . Martyr 4 | . . . . . . . . . . . . . . . . . . . . . 4 . . . . . . . . . . . . . . Revision 1 | . . . . . . . . . . . . . . . . . . . . . . . . . . . . . . . . 1 . . . Best Kill Streak 74 | 1 6 3 5 9 . 3 5 3 1 1 . 1 8 2 3 2 7 2 7 3 . 4 5 5 . 5 5 4 6 7 . 3 6 16 74 Combat Bots Only 74 | . 5 3 3 6 . 3 4 3 1 1 . 1 3 2 3 2 6 1 6 2 . 4 5 5 . 5 4 4 6 6 . 2 5 16 74 Max Kills in Single Turn 9 | 1 3 3 2 5 . 1 3 2 1 1 . 1 5 1 2 1 3 1 2 2 1 1 5 2 . 4 2 1 4 2 . 1 5 2 9 Gunslinging 1 | . . . . . . . . . . . . . . . 1 . . . . . . . . 1 . . 1 . . . . . . . 1 Exploded 9 | . 3 3 . 2 . 1 3 2 . . . . 2 . . . 1 . . . . . 5 . . 4 . . 3 1 . . 5 2 9 Melee 1 | . . . . . . 1 . . . . . . . . . . . . . . . . . . . . . . . . . . . . 1 Uniques/NPCs Destroyed 3 | . . . . . . . . . . . . . . . . . 1 . . . . . . . . . . . . . . . . . 2 A7 (-6/Cetus) MAIN.C Shell (-1/Command) MAIN.C (-1/Command) Combat | -11 -10 -10 -9 -9 -9 -8 -8 -7 -7 -7 -7 -6 -6 -6 -6 -6 -6 -6 -6 -5 -5 -5 -5 -5 -5 -4 -4 -4 -4 -4 -4 -3 -2 -1 -1 -------- Run | Scr Mat Min Mat Min Exi Min Mat Fac Low Low Zio Pro Fac Was Fac Ext Cet Arc Hub Fac Was Fac Upp Upp Zhi Pro Fac Was Fac Arm Lab Res Res Acc Com Damage Taken 25489 | . 831 129 381 284 . 643 349 945 143 59 . 45 1234 . 928 345 249 380 2251 181 46 183 587 285 . 273 28 . 1281 778 . 920 103 1976 9652 Core 1071 | . 174 20 51 56 . 18 . 81 . . . 11 61 . 2 7 . . 106 . . 2 55 12 . . . . 19 14 . 9 . 121 252 Absorbed by Shields 9679 | . . . . . . . . . . . . . . . . 9 200 . . . . . . . . . . . . 273 . 538 107 1558 6994 Reduced by Siege Mode 1588 | . . . . . . . . . . . . . . . 9 . 2 31 69 5 . 21 4 22 . 26 3 . 130 61 . 61 3 111 1030 Core Remaining (%) 83 | 100 . 22 . . . 68 100 . . . . 86 . . . . . . 79 . . . . . . 93 . . . . 97 99 100 . 76 Volleys Fired 1782 | 6 110 5 47 22 . 25 64 44 7 6 . 2 63 32 43 19 28 20 89 37 36 40 10 12 4 11 53 16 68 106 33 93 55 131 445 Largest 4 | 2 2 1 2 2 . 2 2 2 2 2 . 2 2 2 2 2 2 2 2 2 2 2 2 2 2 2 3 3 3 3 1 1 3 4 4 Hottest 240 | 80 100 30 100 100 . 50 100 69 97 56 . 56 56 56 90 90 75 80 90 90 125 125 70 70 70 70 125 105 105 105 90 113 120 190 240 Shots Fired 2735 | 12 174 5 92 29 . 33 108 67 11 12 . 4 114 70 69 37 44 40 145 42 39 47 15 24 8 15 89 48 115 191 33 93 79 173 658 Gun 1704 | 12 149 . 90 14 . 19 96 48 7 12 . 4 112 70 55 36 32 40 112 10 3 13 12 24 8 8 53 48 73 128 . . 36 64 316 Cannon 816 | . . . . . . . . 14 4 . . . . . 14 1 1 . 33 31 36 34 . . . 5 35 . 37 59 33 93 40 105 241 Launcher 191 | . 22 5 . 4 . 14 7 5 . . . . 2 . . . 11 . . . . . 3 . . 2 . . 5 3 . . 3 4 101 Special 24 | . 3 . 2 11 . . 5 . . . . . . . . . . . . 1 . . . . . . 1 . . 1 . . . . . Kinetic 1626 | . 92 . 90 14 . 19 96 48 7 12 . 4 112 70 55 36 32 40 112 10 3 13 12 24 8 8 53 48 73 128 . . 36 64 307 Thermal 488 | 12 60 . 2 11 . . 5 . . . . . . . 8 1 . . 15 24 36 26 . . . . 31 . 20 31 33 42 30 27 74 Explosive 160 | . 22 5 . 4 . 1 . 5 . . . . 2 . . . . . . . . . 3 . . 2 . . 5 3 . . 3 4 101 Electromagnetic 458 | . . . . . . 13 7 14 4 . . . . . 6 . 12 . 18 7 . 8 . . . 5 4 . 17 28 . 51 10 78 176 Robot Hit Streak 76 | 10 18 9 7 13 . 6 14 9 17 4 . 4 18 10 76 9 16 21 21 18 23 32 5 8 11 23 19 10 24 45 . 20 30 74 74 Robot Miss Streak 10 | 1 8 . 3 1 . 2 3 4 3 5 . 1 7 9 6 5 5 2 4 . 3 1 8 1 . 10 2 2 8 4 . 1 2 2 2 Penetration Max 2 | . . . . . . . . . . . . . . . . . . 1 1 1 . 1 . . . 1 1 . 1 1 . 1 1 1 2 Secondary Targets 32 | . . . . 1 . 1 . . . . . . . . 2 . . . 1 . . 1 . 3 . . 2 1 2 3 . . 2 3 10 Max Gunslinging Chain 2 | . . . . 1 . 1 . . . . . . . . 1 . . . 1 . . 1 . 1 . . 2 1 1 1 . . 1 1 1 Capacitor 60 | . . . . . . . . . . . . . . . . . . . . . . . . . . . . . . . . . . . 60 Shots Hit Robots 1929 | 10 110 2 56 12 . 16 74 56 9 10 . 3 105 57 61 33 33 30 101 16 51 20 10 17 7 12 47 38 77 135 . 44 41 136 500 Core Hits 1662 | 2 59 11 23 15 . 15 35 39 8 4 . 4 101 77 87 49 43 13 46 8 26 7 30 8 6 15 19 17 41 75 . 17 32 70 660 Critical Hits 208 | . 2 . 1 . . . . . . . . . . . . . . 11 17 2 8 8 4 1 2 5 10 5 11 16 . 8 5 33 59 Critical Kills 74 | . 1 . . . . . . . . . . . . . . . . 3 9 1 5 2 . 1 . 2 4 4 4 5 . 2 2 13 16 Critical Parts Destroyed 119 | . 1 . 1 . . . . . . . . . . . . . . 6 8 1 3 6 1 . . 3 6 1 7 10 . 6 3 20 36 Melee Attacks 68 | . . . . . . . . 13 5 6 1 2 13 . 9 . . . . . 19 . . . . . . . . . . . . . . Impact . | . . . . . . . . . . . . . . . . . . . . . . . . . . . . . . . . . . . . Slashing 49 | . . . . . . . . 13 5 6 1 2 13 . 9 . . . . . . . . . . . . . . . . . . . . Piercing 19 | . . . . . . . . . . . . . . . . . . . . . 19 . . . . . . . . . . . . . . Sneak Attacks 25 | . . . . . . . . 2 . . . . 2 . 2 . . . . . 19 . . . . . . . . . . . . . . Combat Hostiles . | . . . . . . . . . . . . . . . . . . . . . . . . . . . . . . . . . . . . Follow-up Attacks . | . . . . . . . . . . . . . . . . . . . . . . . . . . . . . . . . . . . . Damage Inflicted 129971 | 101 2068 391 836 700 . 649 1399 1420 228 89 . 58 2699 1570 2006 895 2330 262 3016 749 3650 1044 1035 461 205 1055 1671 1132 3493 4540 . 2055 2764 7596 77804 Guns 33852 | 101 919 . 820 128 . 212 1113 583 134 89 . 58 1861 1570 1391 823 655 213 2169 262 73 352 235 461 205 331 1171 1132 1603 2701 . . 1251 1870 9366 Cannons 20912 | . . . . . . . . 313 84 . . . . . 159 . 35 . 542 487 1061 549 . . . 424 496 . 826 1117 . 2042 430 4270 8077 Explosions 71385 | . 1143 385 . 518 . 390 220 313 . . . . 580 . 141 . 1640 . 305 . . 107 800 . . 300 4 . 1064 722 . . 1060 1419 60274 Melee 3228 | . . . . . . . . 196 . . . . 250 . 266 . . . . . 2516 . . . . . . . . . . . . . . Ramming 570 | . 6 6 16 30 . 47 66 15 10 . . . 8 . 49 72 . 49 . . . 36 . . . . . . . . . 13 23 37 87 Kinetic 33454 | . 622 . 820 128 . 212 1113 583 134 89 . 58 1861 1570 1391 823 655 213 2169 262 73 352 235 461 205 331 1171 1132 1603 2701 . . 1251 1870 9366 Thermal 3817 | 101 297 . . 24 . . 23 . . . . . . . 141 . 768 . . . 1061 143 . . . . 100 . 145 34 . 34 . 109 837 Explosive 68294 | . 1143 385 . 518 . 122 . 313 . . . . 580 . . . . . . . . . 800 . . 300 . . 952 722 . . 1060 1365 60034 Electromagnetic 20608 | . . . . . . 268 197 313 84 . . . . . 159 . 907 . 847 487 . 513 . . . 424 400 . 793 1083 . 2008 430 4215 7480 Impact . | . . . . . . . . . . . . . . . . . . . . . . . . . . . . . . . . . . . . Slashing 712 | . . . . . . . . 196 . . . . 250 . 266 . . . . . . . . . . . . . . . . . . . . Piercing 2516 | . . . . . . . . . . . . . . . . . . . . . 2516 . . . . . . . . . . . . . . Highest Corruption 49 | . 1 1 . . . . . 4 4 4 4 1 2 21 . . . . 2 3 3 . . . . 1 . . . . . . . 7 49 Average Corruption 11 | . 1 1 . . . . . 2 4 4 4 1 1 12 . . . . 1 2 1 . . . . 1 . . . . . . . 5 17 Corruption Purged 81 | . . . . . . . . . . . . . 1 26 . . . . . . 3 . . . . . . . . . . . . . 51 Effects 848 | . 1 7 . . . . . 17 17 26 1 1 13 172 . . . . 3 1 5 . . . . 3 . . . . . . . 34 547 Message Errors 181 | . . 3 . . . . . 2 7 8 . . 2 39 . . . . 1 . 1 . . . . 1 . . . . . . . 7 110 Matter Fused 147 | . . . . . . . . 3 1 7 . . . 27 . . . . . 1 . . . . . . . . . . . . . 7 101 Heat Flow Errors 94 | . . . . . . . . 3 . 4 . . 1 26 . . . . 1 . 1 . . . . . . . . . . . . 2 56 Energy Discharges 97 | . . 2 . . . . . 2 3 4 1 1 4 16 . . . . 1 . 2 . . . . . . . . . . . . 3 58 Parts Rejected 1 | . . . . . . . . . . . . . . . . . . . . . . . . . . . . . . . . . . . 1 Data Loss (minor) 97 | . 1 2 . . . . . 3 5 3 . . 1 25 . . . . . . 1 . . . . 2 . . . . . . . 4 50 Data Loss (major) 25 | . . . . . . . . . . . . . . 5 . . . . . . . . . . . . . . . . . . . . 20 Misfires 26 | . . . . . . . . . . . . . . 8 . . . . . . . . . . . . . . . . . . . . 18 Alerts 12 | . . . . . . . . . . . . . . 3 . . . . . . . . . . . . . . . . . . . . 9 Misdirections 34 | . . . . . . . . . . . . . . 9 . . . . . . . . . . . . . . . . . . . . 25 Targeting Errors 100 | . . . . . . . . 4 1 . . . 5 12 . . . . . . . . . . . . . . . . . . . 8 70 Weapon Failures 34 | . . . . . . . . . . . . . . 2 . . . . . . . . . . . . . . . . . . . 3 29 Overload Shots 11 | . . . . . . . . . . . . . . . . . . . . . . . . . . . . . . . . . . . 11 Effects 3 | . . . . . . . . . . . . . . . . . . . . . . . . . . . . . . . . . . . 3 Short Circuit 1 | . . . . . . . . . . . . . . . . . . . . . . . . . . . . . . . . . . . 1 Meltdown 2 | . . . . . . . . . . . . . . . . . . . . . . . . . . . . . . . . . . . 2 Overflow Damage 5495 | . 65 34 . 10 . 7 . . 6 . . . 40 . 55 31 85 16 71 47 231 26 6 . . 13 35 . 129 51 . 44 111 157 4225 Projectiles 766 | . . . . . . . . . . . . . . . 5 . . . 51 47 47 . . . . 5 35 . . 51 . 44 80 125 276 Explosions 4369 | . 65 34 . 10 . 7 . . . . . . 4 . . . 85 . 20 . . . 6 . . 8 . . 129 . . . 31 27 3943 Melee 360 | . . . . . . . . . 6 . . . 36 . 50 31 . 16 . . 184 26 . . . . . . . . . . . 5 6 Knockbacks 7 | . . . . 1 . . 1 . . . . . . . . 2 . . . . . . . . . . . . . . . 1 1 . 1 Impact 6 | . . . . 1 . . 1 . . . . . . . . 1 . . . . . . . . . . . . . . . 1 1 . 1 Kinetic . | . . . . . . . . . . . . . . . . . . . . . . . . . . . . . . . . . . . . Secondary 1 | . . . . . . . . . . . . . . . . 1 . . . . . . . . . . . . . . . . . . . Self-Inflicted Damage 2688 | . 85 98 8 67 . 109 17 90 . . . . 30 . . . 19 . 9 . . . 53 . . . . . 210 53 . . 39 . 1801 Shots 53 | . 3 4 . 2 . 5 1 3 . . . . 1 . . . 1 . 1 . . . 3 . . . . . 2 2 . . 1 . 24 Rammed 37 | . . 3 2 2 . 5 8 1 1 . . . 1 . 2 2 . 3 . . . 1 . . . . . . . . . 1 . 2 3 Targets Rammed 45 | . 1 3 2 2 . 5 9 3 1 . . . 1 . 3 2 . 3 . . . 1 . . . . . . . . . 1 1 2 5 Kicked 1 | . 1 . . . . . . . . . . . . . . . . . . . . . . . . . . . . . . . . . . Crushed 7 | . . . . . . . 1 2 . . . . . . 1 . . . . . . . . . . . . . . . . . 1 . 2 Highest Temperature 442 | 90 442 . 78 83 . 65 125 254 117 275 413 12 255 272 128 72 . . 203 156 162 168 53 238 . 180 4 . 192 227 391 144 72 227 423 Average Temperature 57 | 42 98 . 24 41 . 23 35 57 41 91 206 7 26 96 44 27 . . 51 47 74 55 20 106 . 84 2 . 13 50 106 27 23 40 75 Received Heat Transfer 3979 | . 396 . 108 81 . 117 117 96 24 . . . 297 . 159 102 31 99 561 9 . 81 36 . . 30 . . 111 127 . . . 104 1293 Effects 8 | . . . . . . . . . . . . . . 5 . . . . . . . . . 2 . . . . . . . . . . 1 Energy Bleed 2 | . . . . . . . . . . . . . . 1 . . . . . . . . . . . . . . . . . . . . 1 Interference 6 | . . . . . . . . . . . . . . 4 . . . . . . . . . 2 . . . . . . . . . . . Siege Activations 98 | . . . . . . . . . . . . . . . 8 1 2 4 4 1 . 2 2 3 . 2 5 . 5 9 . 9 3 11 27 Total Turns 2885 | . . . . . . . . . . . . . . . 103 5 20 59 167 14 . 32 18 27 . 23 48 . 106 196 . 54 36 183 1794 Longest Duration 1132 | . . . . . . . . . . . . . . . 26 5 13 26 108 14 . 21 10 16 . 12 17 . 25 42 . 12 24 45 1132 Robots Corrupted 101 | . . . . . . . . 1 . . . . . . 1 . 5 . 5 . . 3 . . . 3 2 . 3 5 . 10 1 20 42 Combat Hostiles 92 | . . . . . . . . 1 . . . . . . 1 . 5 . 3 . . 3 . . . 3 2 . 3 5 . 9 . 20 37 Parts Fried 179 | . . . . . . 2 1 4 . . . . . . 1 1 7 . 6 5 . 3 . . . 8 4 . 8 8 . 24 4 27 66 Impact Corruptions 8 | . . . . . . . . . 2 . . . . . . 1 . 2 . . . 1 . . . . . . . . . . . 1 1 Robots Melted 1 | . 1 . . . . . . . . . . . . . . . . . . . . . . . . . . . . . . . . . . Combat Hostiles 1 | . 1 . . . . . . . . . . . . . . . . . . . . . . . . . . . . . . . . . . Parts Melted 6 | . 1 . . . . . . . . . . . . . . . . 2 . . 1 . . . . . . . . 1 . . . 1 . Heat Transferred 4364 | 225 757 . . 50 . . 50 . . . . . . . 100 . 500 . . . 1600 150 . . . . 150 . 100 50 . 50 . 87 495 Parts Sabotaged 1 | . . . . . . . . . . . . . . . . . . . . . . . . . . . . . . . . . . . 1 Parts Stolen . | . . . . . . . . . . . . . . . . . . . . . . . . . . . . . . . . . . . . Parts Stripped . | . . . . . . . . . . . . . . . . . . . . . . . . . . . . . . . . . . . . Power Chain Reactions 9 | . . . . . . . 2 . . . . . . . 1 . 3 . . . . 1 . . . . . . . . . . . 1 1 Missiles Intercepted 2 | . . . . . . . . . . . . . . . . . . . . . . . . . . . . . . . . . . . 2 Alert | -11 -10 -10 -9 -9 -9 -8 -8 -7 -7 -7 -7 -6 -6 -6 -6 -6 -6 -6 -6 -5 -5 -5 -5 -5 -5 -4 -4 -4 -4 -4 -4 -3 -2 -1 -1 ------- Run | Scr Mat Min Mat Min Exi Min Mat Fac Low Low Zio Pro Fac Was Fac Ext Cet Arc Hub Fac Was Fac Upp Upp Zhi Pro Fac Was Fac Arm Lab Res Res Acc Com Peak Influence 8033 | 5 358 466 239 191 . 130 184 457 . . . . 267 66 180 296 584 339 837 456 161 156 . . . . 268 110 347 405 . 524 437 1568 8033 Initial 980 | . 3 139 40 36 . . 50 67 . . . . 18 66 . 24 55 154 118 409 159 . . . . . 31 93 . 169 . . 267 214 980 Average 1765 | 1 199 230 116 55 . 59 80 174 . . . . 68 4 65 116 326 278 455 183 70 32 . . . . 112 94 140 251 . 229 247 647 6168 Maximum Alert Level 5 | . 1 2 1 . . . . 2 . . . . 1 . . 1 2 1 3 2 . . . . . . 1 . 1 2 . 2 2 4 5 Low Security (%) 46 | 100 57 29 94 100 . 100 100 51 . . . . 93 100 100 77 54 21 19 62 100 100 . . . . 72 100 65 27 . 37 39 8 . Level 1 15 | . 42 63 5 . . . . 38 . . . . 6 . . 22 11 78 23 4 . . . . . . 27 . 34 71 . 43 49 36 . Level 2 4 | . . 6 . . . . . 9 . . . . . . . . 34 . 34 33 . . . . . . . . . 1 . 19 11 26 . Level 3 . | . . . . . . . . . . . . . . . . . . . 21 . . . . . . . . . . . . . . 5 . Level 4 3 | . . . . . . . . . . . . . . . . . . . . . . . . . . . . . . . . . . 23 7 Level 5 6 | . . . . . . . . . . . . . . . . . . . . . . . . . . . . . . . . . . . 21 High Security 22 | . . . . . . . . . . . . . . . . . . . . . . . . . . . . . . . . . . . 71 Max Security . | . . . . . . . . . . . . . . . . . . . . . . . . . . . . . . . . . . . . Squads Dispatched 113 | . 10 . 1 1 . . 1 8 . . . . 6 . 6 1 . . 4 2 . 2 . . . . 2 . 2 5 . 10 3 10 39 Investigation 17 | . 4 . . 1 . . . 3 . . . . 1 . 1 . . . 1 . . . . . . . . . . . . 5 . 1 . Extermination 32 | . . . . . . . . 4 . . . . 4 . 3 . . . . 1 . 2 . . . . 2 . 2 5 . . 3 3 3 Reinforcement 22 | . 6 . 1 . . . 1 . . . . . 1 . 2 1 . . 3 . . . . . . . . . . . . 5 . 2 . Assault 41 | . . . . . . . . . . . . . . . . . . . . 1 . . . . . . . . . . . . . 4 36 Garrison 1 | . . . . . . . . 1 . . . . . . . . . . . . . . . . . . . . . . . . . . . Intercept . | . . . . . . . . . . . . . . . . . . . . . . . . . . . . . . . . . . . . Construction Impeded 2 | . . . . . . . . . . . . . 1 . . 1 . . . . . . . . . . . . . . . . . . . Haulers Reinforced 6 | . . . . . . . . . . . . . . . 2 . . . 1 . . . . . . . . . . . . 1 . 2 . Stealth | -11 -10 -10 -9 -9 -9 -8 -8 -7 -7 -7 -7 -6 -6 -6 -6 -6 -6 -6 -6 -5 -5 -5 -5 -5 -5 -4 -4 -4 -4 -4 -4 -3 -2 -1 -1 --------- Run | Scr Mat Min Mat Min Exi Min Mat Fac Low Low Zio Pro Fac Was Fac Ext Cet Arc Hub Fac Was Fac Upp Upp Zhi Pro Fac Was Fac Arm Lab Res Res Acc Com Distress Signals 53 | . 3 . 3 . . . 4 1 . . . . 2 . 2 1 2 . 3 . . . . . . . 3 . 2 3 . 12 . 2 10 Communications Jammed 61 | . . . . . . . . . . . . . . . . . . . . . . . . . . . . . . 3 . . . 9 49 Distress Signals 61 | . . . . . . . . . . . . . . . . . . . . . . . . . . . . . . 3 . . . 9 49 Times Spotted 812 | . 41 9 22 12 . 9 28 19 3 1 . 1 19 6 18 26 13 7 24 9 1 12 14 7 . 10 17 5 29 27 . 21 12 63 327 Peak Tracking Total 68 | . 4 3 5 4 . 3 4 3 1 1 . 1 4 2 4 4 7 1 9 2 1 4 5 5 . 5 5 2 6 6 . 4 4 8 68 Tactical Retreats 30 | . 1 . 1 1 . . . . . . . . 1 . . 1 . . 3 . . . . . . . . . 1 1 . 3 . 6 11 Traps | -11 -10 -10 -9 -9 -9 -8 -8 -7 -7 -7 -7 -6 -6 -6 -6 -6 -6 -6 -6 -5 -5 -5 -5 -5 -5 -4 -4 -4 -4 -4 -4 -3 -2 -1 -1 ------- Run | Scr Mat Min Mat Min Exi Min Mat Fac Low Low Zio Pro Fac Was Fac Ext Cet Arc Hub Fac Was Fac Upp Upp Zhi Pro Fac Was Fac Arm Lab Res Res Acc Com Traps Triggered 43 | . 3 . . . . . . 5 . . . . 1 . . 7 . . 1 2 . 1 . . . . 1 . . . . . 1 3 18 Indirectly 1 | . . . . . . . . . . . . . . . . . . . 1 . . . . . . . . . . . . . . . . Trap Hack Attempts . | . . . . . . . . . . . . . . . . . . . . . . . . . . . . . . . . . . . . Triggered . | . . . . . . . . . . . . . . . . . . . . . . . . . . . . . . . . . . . . Disarmed . | . . . . . . . . . . . . . . . . . . . . . . . . . . . . . . . . . . . . Reprogrammed . | . . . . . . . . . . . . . . . . . . . . . . . . . . . . . . . . . . . . Reused . | . . . . . . . . . . . . . . . . . . . . . . . . . . . . . . . . . . . . Traps Extracted . | . . . . . . . . . . . . . . . . . . . . . . . . . . . . . . . . . . . . Installed . | . . . . . . . . . . . . . . . . . . . . . . . . . . . . . . . . . . . . Triggered 3 | . . . . . . . . . . . . . . . . . . . . . . . . . . . . . . . . . . 1 2 Machines | -11 -10 -10 -9 -9 -9 -8 -8 -7 -7 -7 -7 -6 -6 -6 -6 -6 -6 -6 -6 -5 -5 -5 -5 -5 -5 -4 -4 -4 -4 -4 -4 -3 -2 -1 -1 ---------- Run | Scr Mat Min Mat Min Exi Min Mat Fac Low Low Zio Pro Fac Was Fac Ext Cet Arc Hub Fac Was Fac Upp Upp Zhi Pro Fac Was Fac Arm Lab Res Res Acc Com Machines Disabled 61 | . 1 2 . 2 . 2 1 . . . . . 2 . . 3 . . 10 1 . 1 . . 1 . 4 . 4 11 3 2 . . 11 Max in Single Turn 10 | . 1 2 . 1 . 2 1 . . . . . 1 . . 1 . . 10 1 . 1 . . 1 . 4 . 1 1 1 1 . . 2 Garrison Access 10 | . . . . . . . . 2 . . . . 1 . . . . . 2 . . 1 . . . . . . 1 . . 1 . 2 . Phase Generator 1 | . . . . . . . . . . . . . . . . . . . . . . . . . . . . . . . . . . . 1 Network Hub 1 | . . . . . . . . . . . . . . . . . . . 1 . . . . . . . . . . . . . . . . Machines Sabotaged . | . . . . . . . . . . . . . . . . . . . . . . . . . . . . . . . . . . . . Garrisons Compromised . | . . . . . . . . . . . . . . . . . . . . . . . . . . . . . . . . . . . . Overloaded Fab Kills . | . . . . . . . . . . . . . . . . . . . . . . . . . . . . . . . . . . . . Fab Network Shutdowns 1 | . . . . . . . . . . . . . . . . . . . . 1 . . . . . . . . . . . . . . . Hacking | -11 -10 -10 -9 -9 -9 -8 -8 -7 -7 -7 -7 -6 -6 -6 -6 -6 -6 -6 -6 -5 -5 -5 -5 -5 -5 -4 -4 -4 -4 -4 -4 -3 -2 -1 -1 --------- Run | Scr Mat Min Mat Min Exi Min Mat Fac Low Low Zio Pro Fac Was Fac Ext Cet Arc Hub Fac Was Fac Upp Upp Zhi Pro Fac Was Fac Arm Lab Res Res Acc Com Machines Accessed 120 | . 5 . 4 1 2 . 9 9 1 . . . 7 . 11 5 1 . 7 6 . 7 . . 7 . 5 . 6 8 . 7 2 6 4 Terminals 76 | . 3 . 4 . . . 7 5 . . . . 6 . 7 5 1 . 5 4 . 4 . . . . 4 . 3 4 . 4 2 4 4 Fabricators 8 | . . . . . . . . 1 . . . . . . 1 . . . . 1 . . . . . . . . 1 4 . . . . . Repair Stations 5 | . . . . . . . 2 . . . . . . . . . . . . . . 1 . . . . 1 . 1 . . . . . . Recycling Units 4 | . 2 . . . . . . . . . . . . . 1 . . . . . . . . . . . . . . . . 1 . . . Scanalyzers 4 | . . . . . . . . . . . . . . . 1 . . . . 1 . 1 . . . . . . . . . 1 . . . Garrison Access 12 | . . . . . . . . 3 . . . . 1 . 1 . . . 2 . . 1 . . . . . . 1 . . 1 . 2 . Total Hacks 454 | . 13 . 7 1 2 . 26 18 1 . . . 36 . 32 6 1 . 13 27 . 25 . . 46 . 38 . 26 40 . 34 19 22 21 Successful 250 | . 6 . 4 1 2 . 16 8 1 . . . 20 . 19 5 1 . 6 18 . 12 . . 46 . 18 . 13 20 . 16 7 7 4 Failed 204 | . 7 . 3 . . . 10 10 . . . . 16 . 13 1 . . 7 9 . 13 . . . . 20 . 13 20 . 18 12 15 17 Catastrophic 37 | . . . . . . . 4 1 . . . . 2 . 3 . . . 1 1 . 1 . . . . 5 . 2 2 . 2 5 4 4 Database Lockouts . | . . . . . . . . . . . . . . . . . . . . . . . . . . . . . . . . . . . . Manual 222 | . 11 . 5 . 1 . 18 9 . . . . 29 . 14 . 1 . 7 15 . 10 . . . . 11 . 18 18 . 15 17 8 15 Terminals 278 | . 10 . 7 . . . 20 11 . . . . 34 . 19 6 1 . 10 17 . 16 . . . . 13 . 15 19 . 25 19 15 21 Fabricators 40 | . . . . . . . . 1 . . . . . . 5 . . . . 7 . . . . . . . . 6 21 . . . . . Repair Stations 41 | . . . . . . . 6 . . . . . . . . . . . . . . 6 . . . . 25 . 4 . . . . . . Recycling Units 6 | . 3 . . . . . . . . . . . . . 2 . . . . . . . . . . . . . . . . 1 . . . Scanalyzers 12 | . . . . . . . . . . . . . . . 4 . . . . 3 . 2 . . . . . . . . . 3 . . . Garrison Access 27 | . . . . . . . . 6 . . . . 2 . 2 . . . 3 . . 1 . . . . . . 1 . . 5 . 7 . Terminal Hacks 138 | . 4 . 2 1 2 . 6 4 1 . . . 14 . 7 5 1 . 3 7 . 2 . . 46 . 4 . 2 6 . 10 5 4 2 Record 37 | . . . . . 1 . . . . . . . . . . . . . . . . . . . 34 . . . . . . 2 . . . Part Schematic 10 | . . . . . . . . 1 . . . . 2 . . . . . . . . . . . 4 . 1 . . 2 . . . . . Robot Analysis 6 | . 2 . . . . . . . . . . . . . . . . . . . . . . . 4 . . . . . . . . . . Prototype ID Bank 8 | . 1 . . . . . . . . . . . 1 . . . . . . . . . . . 4 . . . . 1 . . 1 . . Open Door 12 | . . . . 1 . . . . 1 . . . 1 . . 5 1 . . . . . . . . . . . . . . . . 3 . Level Access Points 3 | . . . . . . . . . . . . . . . . . . . 1 . . . . . . . . . . . . 1 1 . . Branch Access Points 11 | . . . 1 . . . 1 1 . . . . 1 . 1 . . . . 1 . 1 . . . . 1 . 1 . . 1 . 1 . Emergency Access Points 1 | . . . . . . . . . . . . . . . . . . . . . . . . . . . . . . . . 1 . . . Machine Index 1 | . . . . . . . . . . . . . . . . . . . . . . 1 . . . . . . . . . . . . . Terminal Index 7 | . . . . . . . . 1 . . . . 1 . 1 . . . . 1 . . . . . . 1 . . . . 1 1 . . Fabricator Index 4 | . . . . . . . . . . . . . 1 . . . . . . . . . . . . . 1 . . . . 1 1 . . Alert Level 2 | . . . . . . . . . . . . . . . 1 . . . . 1 . . . . . . . . . . . . . . . Unreport Threat 19 | . . . . . . . 3 1 . . . . 3 . 2 . . . . 3 . . . . . . . . 1 2 . 2 1 . 1 Locate Traps 8 | . . . . . . . . . . . . . 2 . 1 . . . 2 1 . . . . . . . . . 1 . . . . 1 Recall Investigation 1 | . . . . . . . . . . . . . 1 . . . . . . . . . . . . . . . . . . . . . . Hauler Manifests 6 | . 1 . 1 . . . 1 . . . . . 1 . 1 . . . . . . . . . . . . . . . . 1 . . . Zone Layout 1 | . . . . . . . 1 . . . . . . . . . . . . . . . . . . . . . . . . . . . . EX-Prototype ID Bank 1 | . . . . . 1 . . . . . . . . . . . . . . . . . . . . . . . . . . . . . . Fabricator Hacks 20 | . . . . . . . . 1 . . . . . . 4 . . . . 4 . . . . . . . . 2 9 . . . . . Network Status 3 | . . . . . . . . 1 . . . . . . . . . . . 1 . . . . . . . . . 1 . . . . . Load Schematic 8 | . . . . . . . . . . . . . . . 2 . . . . 1 . . . . . . . . 1 4 . . . . . Build 9 | . . . . . . . . . . . . . . . 2 . . . . 2 . . . . . . . . 1 4 . . . . . Repair Station Hacks 26 | . . . . . . . 5 . . . . . . . . . . . . . . 6 . . . . 12 . 3 . . . . . . Scan Component 15 | . . . . . . . 3 . . . . . . . . . . . . . . 3 . . . . 7 . 2 . . . . . . Repair 11 | . . . . . . . 2 . . . . . . . . . . . . . . 3 . . . . 5 . 1 . . . . . . Recycling Unit Hacks 2 | . . . . . . . . . . . . . . . 1 . . . . . . . . . . . . . . . . 1 . . . Retrieve Components 2 | . . . . . . . . . . . . . . . 1 . . . . . . . . . . . . . . . . 1 . . . Scanalyzer 8 | . . . . . . . . . . . . . . . 3 . . . . 3 . 1 . . . . . . . . . 1 . . . Insert Component 5 | . . . . . . . . . . . . . . . 2 . . . . 1 . 1 . . . . . . . . . 1 . . . Analyze 3 | . . . . . . . . . . . . . . . 1 . . . . 2 . . . . . . . . . . . . . . . Garrison Access Hacks 4 | . . . . . . . . . . . . . . . . . . . 1 . . 1 . . . . . . 1 . . . . 1 . Seal Access 4 | . . . . . . . . . . . . . . . . . . . 1 . . 1 . . . . . . 1 . . . . 1 . Unauthorized Hacks 52 | . 2 . 2 . . . 5 3 . . . . 6 . 4 . . . 2 4 . 2 . . . . 2 . 5 5 . 4 2 2 2 Terminals 36 | . . . 2 . . . 5 1 . . . . 5 . 3 . . . 1 2 . 2 . . . . 2 . 2 3 . 3 2 1 2 Track 4 | . . . . . . . 1 . . . . . 1 . . . . . . . . . . . . . 1 . . . . 1 . . . Assimilate 4 | . . . . . . . . . . . . . 1 . 1 . . . . . . 1 . . . . . . . . . . . 1 . Botnet 24 | . . . 1 . . . 3 1 . . . . 2 . 2 . . . 1 2 . 1 . . . . 1 . 2 2 . 2 2 . 2 Operators 4 | . . . 1 . . . 1 . . . . . 1 . . . . . . . . . . . . . . . . 1 . . . . . Fabricators 8 | . . . . . . . . . . . . . . . 1 . . . . 2 . . . . . . . . 3 2 . . . . . Report 1 | . . . . . . . . . . . . . . . . . . . . . . . . . . . . . 1 . . . . . . Prioritize 5 | . . . . . . . . . . . . . . . 1 . . . . 1 . . . . . . . . 1 2 . . . . . Siphon 2 | . . . . . . . . . . . . . . . . . . . . 1 . . . . . . . . 1 . . . . . . Repair Stations . | . . . . . . . . . . . . . . . . . . . . . . . . . . . . . . . . . . . . Recycling Units 2 | . 2 . . . . . . . . . . . . . . . . . . . . . . . . . . . . . . . . . . Tunnel 2 | . 2 . . . . . . . . . . . . . . . . . . . . . . . . . . . . . . . . . . Scanalyzers . | . . . . . . . . . . . . . . . . . . . . . . . . . . . . . . . . . . . . Garrison Access 6 | . . . . . . . . 2 . . . . 1 . . . . . 1 . . . . . . . . . . . . 1 . 1 . Jam 6 | . . . . . . . . 2 . . . . 1 . . . . . 1 . . . . . . . . . . . . 1 . 1 . Data Cores Recovered . | . . . . . . . . . . . . . . . . . . . . . . . . . . . . . . . . . . . . Used . | . . . . . . . . . . . . . . . . . . . . . . . . . . . . . . . . . . . . Hacking Detections 77 | . 2 . 4 . . . 9 8 . . . . 4 . 7 2 . . 5 5 . 4 . . . . 5 . 4 5 . 4 2 3 4 Full Trace Events 2 | . . . . . . . 1 . . . . . . . 1 . . . . . . . . . . . . . . . . . . . . Feedback Events . | . . . . . . . . . . . . . . . . . . . . . . . . . . . . . . . . . . . . Feedback Blocked . | . . . . . . . . . . . . . . . . . . . . . . . . . . . . . . . . . . . . Robot Schematics Acquired . | . . . . . . . . . . . . . . . . . . . . . . . . . . . . . . . . . . . . Robots Built . | . . . . . . . . . . . . . . . . . . . . . . . . . . . . . . . . . . . . Matter . | . . . . . . . . . . . . . . . . . . . . . . . . . . . . . . . . . . . . Time . | . . . . . . . . . . . . . . . . . . . . . . . . . . . . . . . . . . . . Total Robot Build Rating . | . . . . . . . . . . . . . . . . . . . . . . . . . . . . . . . . . . . . Part Schematics Acquired 12 | . . . . . . . . 1 . . . . 2 . 1 . . . . 1 . . . . 4 . 1 . . 2 . . . . . Parts Built 11 | . . . . . . . . . . . . . . . 3 . . . . 2 . . . . . . . . 1 5 . . . . . Matter 2450 | . . . . . . . . . . . . . . . 358 . . . . 614 . . . . . . . . 213 1265 . . . . . Time 903 | . . . . . . . . . . . . . . . 115 . . . . 280 . . . . . . . . 152 356 . . . . . Total Part Build Rating 73 | . . . . . . . . . . . . . . . 17 . . . . 14 . . . . . . . . 5 37 . . . . . Parts Repaired 11 | . . . . . . . 2 . . . . . . . . . . . . . . 3 . . . . 5 . 1 . . . . . . Time 576 | . . . . . . . 52 . . . . . . . . . . . . . . 241 . . . . 188 . 95 . . . . . . Parts Recycled . | . . . . . . . . . . . . . . . . . . . . . . . . . . . . . . . . . . . . Recycled Matter . | . . . . . . . . . . . . . . . . . . . . . . . . . . . . . . . . . . . . Retrieved Matter . | . . . . . . . . . . . . . . . . . . . . . . . . . . . . . . . . . . . . Retrieved Components 18 | . . . . . . . . . . . . . . . 9 . . . . . . . . . . . . . . . . 9 . . . Parts Scanalyzed 2 | . . . . . . . . . . . . . . . 1 . . . . 1 . . . . . . . . . . . . . . . Part Schematics Acquired 2 | . . . . . . . . . . . . . . . 1 . . . . 1 . . . . . . . . . . . . . . . Parts Damaged 1 | . . . . . . . . . . . . . . . . . . . . 1 . . . . . . . . . . . . . . . Bothacking | -11 -10 -10 -9 -9 -9 -8 -8 -7 -7 -7 -7 -6 -6 -6 -6 -6 -6 -6 -6 -5 -5 -5 -5 -5 -5 -4 -4 -4 -4 -4 -4 -3 -2 -1 -1 ------------ Run | Scr Mat Min Mat Min Exi Min Mat Fac Low Low Zio Pro Fac Was Fac Ext Cet Arc Hub Fac Was Fac Upp Upp Zhi Pro Fac Was Fac Arm Lab Res Res Acc Com Used RIF Installer . | . . . . . . . . . . . . . . . . . . . . . . . . . . . . . . . . . . . . Robots Hacked 2 | . . . . . . . . . . . . . . . . . . . . 1 . . . . . . 1 . . . . . . . . Non-combat 2 | . . . . . . . . . . . . . . . . . . . . 1 . . . . . . 1 . . . . . . . . Combat . | . . . . . . . . . . . . . . . . . . . . . . . . . . . . . . . . . . . . Robot Hacks Applied 2 | . . . . . . . . . . . . . . . . . . . . 1 . . . . . . 1 . . . . . . . . find_chute 2 | . . . . . . . . . . . . . . . . . . . . 1 . . . . . . 1 . . . . . . . . Relay Couplers Released . | . . . . . . . . . . . . . . . . . . . . . . . . . . . . . . . . . . . . Robots Rewired 9 | . . . . . . . . . . . . . . . . 2 . . . . . . . . . . . . . 7 . . . . . Allies Hacked 3 | . . . . . . . . . . . . 1 . . . . . . . . . . . . . . . . . 2 . . . . . Hacks Repelled . | . . . . . . . . . . . . . . . . . . . . . . . . . . . . . . . . . . . . Allies | -11 -10 -10 -9 -9 -9 -8 -8 -7 -7 -7 -7 -6 -6 -6 -6 -6 -6 -6 -6 -5 -5 -5 -5 -5 -5 -4 -4 -4 -4 -4 -4 -3 -2 -1 -1 -------- Run | Scr Mat Min Mat Min Exi Min Mat Fac Low Low Zio Pro Fac Was Fac Ext Cet Arc Hub Fac Was Fac Upp Upp Zhi Pro Fac Was Fac Arm Lab Res Res Acc Com Total Allies 52 | . . 1 . 2 . . . . . . 2 . 1 1 1 10 5 . . . 20 1 . . . . . . . 7 . . . 1 . Largest Group 20 | . . 1 1 2 2 . . . . . 2 2 1 1 1 7 8 5 . . 20 1 . . . . . . . 7 . . . 1 . Highest-Rated Group 742 | . . 31 31 41 41 . . . . . 39 39 10 31 10 310 666 470 . . 742 26 . . . . . . . 299 . . . 44 . Highest-Rated Ally 156 | . . 31 31 31 31 . . . . . 25 25 10 31 10 156 156 94 . . 50 26 . . . . . . . 60 . . . 44 . Total Orders 15 | . . . . . . . . . . . . . . . 1 2 9 1 . . . 2 . . . . . . . . . . . . . STAY 11 | . . . . . . . . . . . . . . . 1 1 7 1 . . . 1 . . . . . . . . . . . . . FOLLOW 4 | . . . . . . . . . . . . . . . . 1 2 . . . . 1 . . . . . . . . . . . . . Ally Attacks 182 | . . 11 4 . . . . . . . . 12 . 5 . 100 27 6 . . 9 . . . . . . . . 8 . . . . . Total Damage 4663 | . . 126 61 . . . . . . . . 206 . 61 . 2164 1311 280 . . 242 . . . . . . . . 212 . . . . . Kills 31 | . . 5 2 . . . . . . . . 1 . . . 13 7 1 . . 1 . . . . . . . . 1 . . . . . Allies Corrupted 1 | . . . . . . . . . . . . . . . . . . . . . . . . . . . . . . . . . . 1 . Allies Melted . | . . . . . . . . . . . . . . . . . . . . . . . . . . . . . . . . . . . . Intel | -11 -10 -10 -9 -9 -9 -8 -8 -7 -7 -7 -7 -6 -6 -6 -6 -6 -6 -6 -6 -5 -5 -5 -5 -5 -5 -4 -4 -4 -4 -4 -4 -3 -2 -1 -1 ------- Run | Scr Mat Min Mat Min Exi Min Mat Fac Low Low Zio Pro Fac Was Fac Ext Cet Arc Hub Fac Was Fac Upp Upp Zhi Pro Fac Was Fac Arm Lab Res Res Acc Com Robot Analysis Total 6 | . 2 . . . . . . . . . . . . . . . . . . . . . . . 4 . . . . . . . . . . Derelict Logs Recovered 12 | . . . . 3 . . . . 1 1 3 1 . . . . . . . . . . 1 1 . 1 . . . . . . . . . Drone Launches . | . . . . . . . . . . . . . . . . . . . . . . . . . . . . . . . . . . . . Drone Recoveries . | . . . . . . . . . . . . . . . . . . . . . . . . . . . . . . . . . . . . Exploration | -11 -10 -10 -9 -9 -9 -8 -8 -7 -7 -7 -7 -6 -6 -6 -6 -6 -6 -6 -6 -5 -5 -5 -5 -5 -5 -4 -4 -4 -4 -4 -4 -3 -2 -1 -1 ------------- Run | Scr Mat Min Mat Min Exi Min Mat Fac Low Low Zio Pro Fac Was Fac Ext Cet Arc Hub Fac Was Fac Upp Upp Zhi Pro Fac Was Fac Arm Lab Res Res Acc Com Turns Passed 59865 | 30 1568 1138 909 1290 580 721 1713 2530 852 1317 2065 751 1832 4490 1730 1244 443 291 992 990 901 1394 806 423 328 606 1152 459 1264 1943 1195 2560 1292 2100 15966 Spaces Moved 20933 | 11 787 588 325 528 289 335 657 1240 429 693 1080 394 800 452 806 611 183 99 347 439 410 557 432 224 187 336 468 197 506 730 179 1169 509 870 3066 Core 230 | . . . . . . . . . . . . . . 155 . . . . . . . . . . . . . . . . . . . . 75 Treads 18598 | . . . 66 528 289 335 657 1240 429 693 1080 394 799 . 644 611 183 99 347 439 410 557 432 224 187 336 468 197 506 730 179 1169 509 870 2991 Legs 1645 | 11 787 588 259 . . . . . . . . . . . . . . . . . . . . . . . . . . . . . . . . Wheels 460 | . . . . . . . . . . . . . 1 297 162 . . . . . . . . . . . . . . . . . . . . Hover . | . . . . . . . . . . . . . . . . . . . . . . . . . . . . . . . . . . . . Flight . | . . . . . . . . . . . . . . . . . . . . . . . . . . . . . . . . . . . . Fastest Speed 120 | 120 120 180 200 200 200 180 180 183 183 183 183 183 130 130 140 180 180 180 180 180 180 180 160 160 160 160 180 195 195 177 165 177 190 190 172 Average Speed 212 | 120 155 180 225 200 200 190 180 183 183 183 183 183 181 945 172 180 180 180 180 180 180 180 174 162 160 162 192 195 195 188 166 181 190 190 275 Slowest Speed 4100 | 120 180 270 240 200 200 200 183 183 183 183 183 183 183 2500 300 180 180 180 180 180 180 180 180 180 160 180 200 195 195 195 177 250 190 190 4100 Overloaded Moves . | . . . . . . . . . . . . . . . . . . . . . . . . . . . . . . . . . . . . Propulsion Burnouts . | . . . . . . . . . . . . . . . . . . . . . . . . . . . . . . . . . . . . Robots Hopped . | . . . . . . . . . . . . . . . . . . . . . . . . . . . . . . . . . . . . Cave-ins Triggered . | . . . . . . . . . . . . . . . . . . . . . . . . . . . . . . . . . . . . Exploration Rate (%) 54 | 2 94 98 33 99 69 70 57 42 53 88 87 58 18 100 25 62 67 80 29 13 95 15 64 36 62 51 13 86 17 48 68 43 19 32 80 Regions Visited 35 Branch Regions 19 Pre-discovered Areas 11 | . 2 . . 2 1 . . . . . 1 . . . . . . . . . . . 1 . 3 1 . . . . . . . . . Known Exits Taken 10 | . . . 1 . . . . 1 . . . 1 . . 1 . . . 1 . . 1 . . . . . . 1 . . 1 1 1 . Unknown Exits Taken 19 | 1 1 1 . 1 1 1 1 . 1 1 1 . . . . 1 1 1 . . . . 1 1 1 1 . . . 1 1 . . . . Scrap Searched 20 | . . 2 . 1 . 2 . . 2 4 4 3 . . . . . . . . . . 1 . . 1 . . . . . . . . . Spaces Dug 430 | . 1 10 1 . . 13 2 29 5 6 . 2 18 . 13 . . . 12 23 . 24 . . . . 26 . 16 33 4 39 30 24 99 Terrain Destroyed 2049 | . 93 52 2 26 . 14 15 71 5 6 . 2 24 . 17 . 36 . 210 24 4 26 114 28 1 44 38 2 154 87 4 43 70 79 758 Melee 39 | . . . . . . . . 11 5 6 . 2 10 . 5 . . . . . . . . . . . . . . . . . . . . Projectile 473 | . 3 . 2 . . 1 5 . . . . . . . 8 . 12 . 54 24 4 26 10 28 1 6 38 2 36 21 4 43 33 30 82 AOE 1537 | . 90 52 . 26 . 13 10 60 . . . . 14 . 4 . 24 . 156 . . . 104 . . 38 . . 118 66 . . 37 49 676 Terrain Rammed . | . . . . . . . . . . . . . . . . . . . . . . . . . . . . . . . . . . . . Walls Destroyed . | . . . . . . . . . . . . . . . . . . . . . . . . . . . . . . . . . . . . Machines Disabled . | . . . . . . . . . . . . . . . . . . . . . . . . . . . . . . . . . . . . Actions | -11 -10 -10 -9 -9 -9 -8 -8 -7 -7 -7 -7 -6 -6 -6 -6 -6 -6 -6 -6 -5 -5 -5 -5 -5 -5 -4 -4 -4 -4 -4 -4 -3 -2 -1 -1 --------- Run | Scr Mat Min Mat Min Exi Min Mat Fac Low Low Zio Pro Fac Was Fac Ext Cet Arc Hub Fac Was Fac Upp Upp Zhi Pro Fac Was Fac Arm Lab Res Res Acc Com Total 33935 | 16 965 658 422 709 291 381 1081 1410 472 719 1169 416 1046 631 1059 715 251 168 566 599 496 901 463 261 209 382 642 237 675 1128 1047 1509 769 1224 10248 Wait 9400 | . 39 57 8 150 . 2 292 20 12 7 65 7 88 116 143 14 10 37 90 95 4 267 11 15 . 14 59 17 62 150 803 145 160 122 6319 Move 20900 | 10 786 587 324 527 288 334 656 1239 428 692 1079 393 800 451 805 610 182 98 346 439 409 556 431 223 186 335 468 196 505 729 178 1168 508 869 3065 Hop . | . . . . . . . . . . . . . . . . . . . . . . . . . . . . . . . . . . . . Pick Up 299 | . 12 2 20 2 2 2 16 20 . 1 4 2 18 9 8 2 6 1 8 7 3 7 1 1 3 2 9 4 3 15 7 11 4 18 69 Fast Attach 191 | . 1 . 1 . . 1 2 5 3 . 8 . 5 2 5 3 6 2 1 1 9 5 . 1 6 2 8 1 7 12 5 28 2 8 51 Attach 164 | . 5 2 5 . . 6 4 3 . . . . 12 . . 1 . . 3 4 1 4 4 3 1 5 9 . . 8 6 4 8 17 49 Detach 109 | . . . . . . . 2 . . . 2 . 4 3 3 . 1 . 3 2 . 4 . 3 2 5 10 . 2 4 4 7 6 11 31 Swap 422 | . 5 2 4 6 1 4 19 37 12 6 . 7 24 4 26 9 6 4 18 6 3 8 5 1 . 3 17 . 19 36 1 16 19 25 69 Drop 414 | . 6 . 11 . . 2 17 24 4 1 10 3 18 14 14 6 12 3 8 6 12 9 1 2 7 5 9 3 9 27 10 36 6 21 98 Fire 1782 | 6 110 5 47 22 . 25 64 44 7 6 . 2 63 32 43 19 28 20 89 37 36 40 10 12 4 11 53 16 68 106 33 93 55 131 445 Melee 68 | . . . . . . . . 13 5 6 1 2 13 . 9 . . . . . 19 . . . . . . . . . . . . . . Ram . | . . . . . . . . . . . . . . . . . . . . . . . . . . . . . . . . . . . . Kick 6 | . 1 3 2 . . . . . . . . . . . . . . . . . . . . . . . . . . . . . . . . Crush 39 | . . . . 2 . 5 9 3 1 . . . 1 . 3 2 . 3 . . . 1 . . . . . . . . . 1 1 2 5 Escape Stasis 61 | . . . . . . . . 2 . . . . . . . 12 . . . 2 . . . . . . . . . . . . . . 45 Rewire 80 | . . . . . . . . . . . . . . . . 37 . . . . . . . . . . . . . 41 . . . . 2 Trap . | . . . . . . . . . . . . . . . . . . . . . . . . . . . . . . . . . . . . Miscellaneous . | . . . . . . . . . . . . . . . . . . . . . . . . . . . . . . . . . . . . Route ------- -11/Scrapyard -10/Materials (discovered 4 exits: *Mat x2 / [*Min x2]) -10/Mines (discovered 2 exits: *Mat x2) -9/Materials (discovered 5 exits: *Mat / *Min x2 / *Sto x2) -9/Mines (discovered 3 exits: *Mat x2 / *Exi) -9/Exiles -8/Mines -8/Materials (discovered 2 exits: *Fac x2) -7/Factory (discovered 4 exits: *Fac x2 / *Low x2) -7/Lower Caves -7/Lower Caves (discovered 2 exits: *Fac / [*Zio]) -7/Zion (discovered 2 exits: Dee / [*Pro]) -6/Proximity Caves -6/Factory (discovered 6 exits: *Fac x2 / Low x2 / *Ext x2) -6/Waste -6/Factory (discovered 4 exits: Low x2 / *Ext x2) -6/Extension (discovered 2 exits: *Fac / *Cet) -6/Cetus (discovered 2 exits: *Fac / [*Arc]) -6/Archives (discovered 3 exits: *Fac / *Hub x2) -6/Hub_04(d) (discovered 4 exits: *Fac x4) -5/Factory (discovered 2 exits: Upp x2) -5/Waste -5/Factory (discovered 3 exits: *Fac / *Upp x2) -5/Upper Caves -5/Upper Caves -5/Zhirov -4/Proximity Caves -4/Factory (discovered 3 exits: Upp x2 / Arm) -4/Waste -4/Factory (discovered 4 exits: Res / Upp x2 / *Arm) -4/Armory (discovered 2 exits: Res / [*Lab]) -4/Lab -3/Research (discovered 5 exits: *Res x3 / Qua x2) -2/Research (discovered 3 exits: *Acc x3) -1/Access (discovered 2 exits: [Sur] / *Com) -1/Command (discovered 2 exits: [*Sur x2]) 0b11 Command History --------- Turn | Location | Event 5 | -11/Scrapyard | Discovered new exit (range 3) 31 | -11/Scrapyard | Entered Materials 31 | -10/Materials | Discovered new exit (range 8) 337 | -10/Materials | Discovered new exit (range 15) 552 | -10/Materials | Core integrity fell below 50% 839 | -10/Materials | Build established: Mutant 859 | -10/Materials | Discovered new exit (range 12) 1131 | -10/Materials | Discovered new exit (range 12) 1599 | -10/Materials | Entered Mines 1600 | -10/Mines | Escorted by a lone wolf Derelict 1665 | -10/Mines | Discovered new exit (range 8) 1787 | -10/Mines | Discovered new exit (range 9) 2306 | -10/Mines | Found a hidden stash of uninstalled traps 2737 | -10/Mines | Entered Materials 2737 | -9/Materials | Accompanied by 1 ally 2737 | -9/Materials | Evolved 2 slots: Utility x2 2934 | -9/Materials | Discovered new exit (range 5) 3033 | -9/Materials | Build established: Hauler-Mutant 3207 | -9/Materials | Discovered new exit (range 4) 3578 | -9/Materials | Identified exit to Mines 3578 | -9/Materials | Identified exit to Storage 3646 | -9/Materials | Entered Mines 3647 | -9/Mines | Learned location of Storage (-9) 3682 | -9/Mines | Learned 2 Materials zone layouts 3804 | -9/Mines | Deemed a non-threat by the Exiles lab entrance 3829 | -9/Mines | Excavation squad dispatched 3829 | -9/Mines | A large section of the Mines collapsed 3980 | -9/Mines | Discovered new exit (range 8) 4267 | -9/Mines | Learned Materials emergency access door positions 4397 | -9/Mines | Met a Derelict shopkeep closing up shop 4711 | -9/Mines | Discovered new exit (range 10) 4923 | -9/Mines | Discovered new exit (range 5) 4936 | -9/Mines | Entered Exiles 4936 | -9/Exiles | Accompanied by 2 allies 4966 | -9/Exiles | Led the pair of lost Derelicts to a safe place 4986 | -9/Exiles | Met 8R-AWN 5014 | -9/Exiles | Met EX-HEX 5124 | -9/Exiles | Met EX-DEC 5158 | -9/Exiles | Learned location of Zion (-7) 5196 | -9/Exiles | Met EX-BIN 5224 | -9/Exiles | Aligned with FarCom system 5226 | -9/Exiles | Given EX-Vault access code 5276 | -9/Exiles | Opened EX-Vault 5290 | -9/Exiles | Found Superbattery 5331 | -9/Exiles | Warned to stay clear of 0b10 Research branches 5498 | -9/Exiles | Discovered new exit (range 11) 5516 | -9/Exiles | Left Exiles lab with Superbattery 5516 | -9/Exiles | Entered Mines 5977 | -8/Mines | Discovered new exit (range 14) 6089 | -8/Mines | Lost 4 parts (1p1n1u1w) 6237 | -8/Mines | Entered Materials 6237 | -8/Materials | Evolved 2 slots: Propulsion x1, Utility x1 6386 | -8/Materials | Repaired Hcp. Storage Unit 6825 | -8/Materials | Discovered new exit (range 6) 7224 | -8/Materials | Discovered new exit (range 14) 7766 | -8/Materials | Repaired Hcp. Storage Unit 7950 | -8/Materials | Entered Factory 7950 | -7/Factory | Evolved 2 slots: Utility x2 8322 | -7/Factory | Build established: Hauler-Skirmisher 9177 | -7/Factory | Discovered new exit (range 14) 9202 | -7/Factory | Identified exit to Factory 9281 | -7/Factory | Build established: Hauler-Assassin 9652 | -7/Factory | Discovered exit to Factory (range 9) 9945 | -7/Factory | Garrison activated, responded to threat 10087 | -7/Factory | Identified exit to Lower Caves 10480 | -7/Factory | Entered Lower Caves 11323 | -7/Lower Caves | Discovered new exit (range 5) 11328 | -7/Lower Caves | Learned Factory stockpile data 11332 | -7/Lower Caves | Attracted the attention of an 0b10 checkpoint 11332 | -7/Lower Caves | Entered another Lower Caves area 11351 | -7/Lower Caves | Discovered exit to Factory (range 13) 12365 | -7/Lower Caves | Learned 4 Factory zone layouts 12604 | -7/Lower Caves | Discovered new exit (range 7) 12649 | -7/Lower Caves | Entered Zion 12717 | -7/Zion | System corruption cleaned by Quarantine Array 12789 | -7/Zion | Learned location of 1 exit from Factory 12851 | -7/Zion | Discovered new exit (range 12) 13054 | -7/Zion | Gained Derelict followers 13102 | -7/Zion | Identified exit to Deep Caves 13107 | -7/Zion | Received a hallucinogenic algorithm 13358 | -7/Zion | Learned location of Quarantine (-3) 13470 | -7/Zion | Found Prototype Device 13470 | -7/Zion | Identified Phasing AFG 13704 | -7/Zion | Given the Hacking Drone Bay 14059 | -7/Zion | Found Prototype Processor 14059 | -7/Zion | Identified Exp. Melee Analysis Suite 14062 | -7/Zion | Found Prototype Processor 14062 | -7/Zion | Identified Exp. Armor Integrity Analyzer 14066 | -7/Zion | Found Prototype Processor 14066 | -7/Zion | Identified Exp. Terrain Scan Processor 14070 | -7/Zion | Found Prototype Processor 14070 | -7/Zion | Identified Spectral Analyzer 14074 | -7/Zion | Found Prototype Hackware 14282 | -7/Zion | Rebuked by Imprinter 14714 | -7/Zion | Entered Proximity Caves 14714 | -6/Proximity Caves | Accompanied by 2 allies 14894 | -6/Proximity Caves | Learned Factory emergency access door positions 15301 | -6/Proximity Caves | Discovered exit to Factory (range 16) 15465 | -6/Proximity Caves | Entered Factory 15465 | -6/Factory | Evolved 2 slots: Utility x2 15466 | -6/Factory | Identified exit to Factory 15663 | -6/Factory | Identified Exp. System Shield 15695 | -6/Factory | Identified exit to Lower Caves 15695 | -6/Factory | Identified exit to Extension 16043 | -6/Factory | Discovered exit to Factory (range 15) 16279 | -6/Factory | P-60 Hacker assimilated allied Technician 5a 16828 | -6/Factory | Spotted B-75 Beast 16855 | -6/Factory | Destroyed B-75 Beast 16947 | -6/Factory | Build established: Hauler-Mutant 17297 | -6/Factory | Sucked down chute 17297 | -6/Factory | Entered Waste 17298 | -6/Waste | Met a frightened Derelict 17312 | -6/Waste | EMP discharged 17316 | -6/Waste | Spotted C-40 Crusher 17344 | -6/Waste | Destroyed C-40 Crusher 17412 | -6/Waste | EMP discharged 17412 | -6/Waste | System corruption reached 10% 17414 | -6/Waste | Destroyed C-40 Crusher 17427 | -6/Waste | Spotted C-40 Crusher 17466 | -6/Waste | Destroyed C-40 Crusher 17470 | -6/Waste | Spotted C-40 Crusher 17506 | -6/Waste | Destroyed C-40 Crusher 17512 | -6/Waste | EMP discharged 17514 | -6/Waste | Spotted C-40 Crusher 17525 | -6/Waste | Destroyed C-40 Crusher 17539 | -6/Waste | Found Damper Plating 17550 | -6/Waste | Spotted C-40 Crusher 17583 | -6/Waste | Destroyed C-40 Crusher 17586 | -6/Waste | Build established: Hauler-Skirmisher 17597 | -6/Waste | Found Damper Plating 17612 | -6/Waste | EMP discharged 17712 | -6/Waste | EMP discharged 17739 | -6/Waste | Discovered new exit (range 16) 17812 | -6/Waste | EMP discharged 17904 | -6/Waste | Build established: Hauler-Mutant 17912 | -6/Waste | EMP discharged 18012 | -6/Waste | EMP discharged 18112 | -6/Waste | EMP discharged 18212 | -6/Waste | EMP discharged 18312 | -6/Waste | EMP discharged 18412 | -6/Waste | EMP discharged 18512 | -6/Waste | EMP discharged 18612 | -6/Waste | EMP discharged 18712 | -6/Waste | EMP discharged 18812 | -6/Waste | EMP discharged 18912 | -6/Waste | EMP discharged 19012 | -6/Waste | EMP discharged 19112 | -6/Waste | EMP discharged 19212 | -6/Waste | EMP discharged 19312 | -6/Waste | EMP discharged 19412 | -6/Waste | EMP discharged 19512 | -6/Waste | EMP discharged 19612 | -6/Waste | EMP discharged 19712 | -6/Waste | EMP discharged 19812 | -6/Waste | EMP discharged 19912 | -6/Waste | EMP discharged 20012 | -6/Waste | EMP discharged 20112 | -6/Waste | EMP discharged 20212 | -6/Waste | EMP discharged 20312 | -6/Waste | EMP discharged 20412 | -6/Waste | EMP discharged 20512 | -6/Waste | EMP discharged 20612 | -6/Waste | EMP discharged 20712 | -6/Waste | EMP discharged 20812 | -6/Waste | EMP discharged 20912 | -6/Waste | EMP discharged 21012 | -6/Waste | EMP discharged 21112 | -6/Waste | EMP discharged 21212 | -6/Waste | EMP discharged 21312 | -6/Waste | EMP discharged 21412 | -6/Waste | EMP discharged 21512 | -6/Waste | EMP discharged 21612 | -6/Waste | EMP discharged 21712 | -6/Waste | EMP discharged 21787 | -6/Waste | Entered Factory 21920 | -6/Factory | Found Prototype Processor 21934 | -6/Factory | Identified Exp. Signal Interpreter 22652 | -6/Factory | Discovered exit to Extension (range 21) 23216 | -6/Factory | Fabricated Hcp. Storage Unit (x1) 23287 | -6/Factory | Fabricated Hyp. Railgun (x2) 23517 | -6/Factory | Entered Extension 23567 | -6/Extension | Rescued a captive Derelict 23619 | -6/Extension | Rescued a captive Derelict 23619 | -6/Extension | Rescued a captive Derelict 23670 | -6/Extension | Rescued a captive Derelict 23671 | -6/Extension | Rescued a captive Derelict 23875 | -6/Extension | Rescued a captive Derelict 23876 | -6/Extension | Rescued a captive Derelict 23880 | -6/Extension | Build established: Hauler-Skirmisher 23943 | -6/Extension | Rescued A7 24143 | -6/Extension | Disrupted transfer network 24411 | -6/Extension | Spotted B-75 Beast 24414 | -6/Extension | Allies destroyed B-75 Beast 24435 | -6/Extension | Spotted B-75 Beast 24443 | -6/Extension | Destroyed B-75 Beast 24698 | -6/Extension | Build established: Scavenger-Mutant 24732 | -6/Extension | Discovered exit to Factory (range 16) 24734 | -6/Extension | Discovered new exit (range 15) 24761 | -6/Extension | Entered Cetus 24761 | -6/Cetus | Accompanied by 3 allies (A7) 24766 | -6/Cetus | Acquired a Cetus Manufacturing Module code from A7 24788 | -6/Cetus | Spotted Cetus Guard 24788 | -6/Cetus | Spotted Cetus Guard 24790 | -6/Cetus | Spotted Cetus Guard 24792 | -6/Cetus | Allies destroyed Cetus Guard 24795 | -6/Cetus | Spotted Cetus Guard 24796 | -6/Cetus | Allies destroyed Cetus Guard 24799 | -6/Cetus | Destroyed Cetus Guard 24802 | -6/Cetus | Destroyed Cetus Guard 24922 | -6/Cetus | Started Cetus Manufacturing Module 24936 | -6/Cetus | Escorted A7 to Cetus Mainframe 24947 | -6/Cetus | Manufactured an Enhanced Grunt 24960 | -6/Cetus | Discovered new exit (range 15) 24972 | -6/Cetus | Manufactured an Enhanced Grunt 24996 | -6/Cetus | Spotted Cetus Guard 24996 | -6/Cetus | Spotted Cetus Guard 24997 | -6/Cetus | Manufactured an Enhanced Grunt 25000 | -6/Cetus | Spotted Cetus Guard 25000 | -6/Cetus | Spotted Cetus Guard 25002 | -6/Cetus | Allies destroyed Cetus Guard 25007 | -6/Cetus | Destroyed Cetus Guard 25008 | -6/Cetus | Destroyed Cetus Guard 25011 | -6/Cetus | Destroyed Cetus Guard 25022 | -6/Cetus | Manufactured an Enhanced Grunt 25030 | -6/Cetus | Discovered exit to Factory (range 15) 25039 | -6/Cetus | Met Revision 17 25047 | -6/Cetus | Manufactured an Enhanced Grunt 25181 | -6/Cetus | Destroyed A7 25186 | -6/Cetus | Extracted ID and sensor layout for unrecognized location from A7's data core 25204 | -6/Cetus | Entered Archives 25204 | -6/Archives | Accompanied by 5 allies 25387 | -6/Archives | Discovered new exit (range 15) 25403 | -6/Archives | Discovered new exit (range 16) 25439 | -6/Archives | Discovered exit to Factory (range 16) 25495 | -6/Archives | Entered Hub_04(d) 25595 | -6/Hub_04(d) | Discovered exit to Factory (range 22) 25746 | -6/Hub_04(d) | Found Prototype Launcher 25750 | -6/Hub_04(d) | Identified Scatter Rocket Array 26230 | -6/Hub_04(d) | Network Hub disabled 26261 | -6/Hub_04(d) | Spotted Lightning 26261 | -6/Hub_04(d) | Spotted Lightning 26261 | -6/Hub_04(d) | Spotted Lightning 26298 | -6/Hub_04(d) | Destroyed Lightning 26363 | -6/Hub_04(d) | Destroyed Lightning 26390 | -6/Hub_04(d) | Destroyed Lightning 26399 | -6/Hub_04(d) | Found Prototype Energy Cannon 26422 | -6/Hub_04(d) | Found Prototype Processor 26427 | -6/Hub_04(d) | Found Prototype Energy Cannon 26487 | -6/Hub_04(d) | Entered Factory 26487 | -5/Factory | Evolved 2 slots: Propulsion x1, Utility x1 26493 | -5/Factory | Discovered new exit (range 14) 26505 | -5/Factory | Identified exit to Upper Caves 26684 | -5/Factory | Build established: Hauler-Mutant 26919 | -5/Factory | Identified EMDS (x2) 27236 | -5/Factory | Fabricated Imp. KE Penetrator (x1) 27287 | -5/Factory | Local fabrication network quarantined 27335 | -5/Factory | Fabricated Imp. KE Penetrator (x1) 27387 | -5/Factory | First assault squad dispatched 27477 | -5/Factory | Sucked down chute 27477 | -5/Factory | Entered Waste 27478 | -5/Waste | Joined by Warlord forces that had cleared the area 27632 | -5/Waste | Found Unknown Protection 27632 | -5/Waste | Identified Adv. Powered Armor 27761 | -5/Waste | Discovered new exit (range 13) 27790 | -5/Waste | A Compactor rumbled back to life 27790 | -5/Waste | Crushed by Compactor (1 part destroyed, 1 dropped) 27790 | -5/Waste | Spotted C-40 Crusher 27791 | -5/Waste | Allies destroyed C-40 Crusher 28033 | -5/Waste | Found Damper Plating 28212 | -5/Waste | Found Enh. Force Lance 28378 | -5/Waste | Entered Factory 28399 | -5/Factory | Discovered new exit (range 18) 28933 | -5/Factory | Repaired Imp. Heavy Siege Treads? 29089 | -5/Factory | Repaired Rnf. Quantum Reactor 29235 | -5/Factory | Repaired Imp. KE Penetrator 29378 | -5/Factory | P-70 Sage assimilated allied Administrator 6a 29498 | -5/Factory | Identified Exp. Targeting Computer 29772 | -5/Factory | Entered Upper Caves 29997 | -5/Upper Caves | Learned location of Armory (-4) 30240 | -5/Upper Caves | Build established: Scavenger-Mutant 30289 | -5/Upper Caves | Spotted B-75 Beast 30302 | -5/Upper Caves | Destroyed B-75 Beast 30374 | -5/Upper Caves | Discovered new exit (range 13) 30578 | -5/Upper Caves | Entered another Upper Caves area 30899 | -5/Upper Caves | Learned Factory emergency access door positions 30985 | -5/Upper Caves | Discovered new exit (range 6) 31001 | -5/Upper Caves | Entered Zhirov 31001 | -5/Zhirov | Discovered new exit (range 3) 31030 | -5/Zhirov | Met Zhirov 31061 | -5/Zhirov | Learned location of Testing (-2) 31061 | -5/Zhirov | Learned location of Command (-1) 31093 | -5/Zhirov | Zhirov requested help retrieving the SGEMP Prototype 31119 | -5/Zhirov | Found Alien Artifact 31119 | -5/Zhirov | Identified Integrated Reactor 31119 | -5/Zhirov | Installed Integrated Reactor, increased core energy generation (+10) 31140 | -5/Zhirov | Found Alien Artifact 31329 | -5/Zhirov | Entered Proximity Caves 31850 | -4/Proximity Caves | Discovered new exit (range 5) 31862 | -4/Proximity Caves | Build established: Hauler-Mutant 31935 | -4/Proximity Caves | Entered Factory 31935 | -4/Factory | Evolved 2 slots: Utility x1, Weapon x1 32012 | -4/Factory | Repaired Centrium Heavy Treads 32074 | -4/Factory | Repaired Centrium Medium Armor Plating? 32157 | -4/Factory | Repaired Centrium Heavy Treads 32185 | -4/Factory | Repaired Hcp. Storage Unit 32200 | -4/Factory | Repaired Hcp. Storage Unit 32240 | -4/Factory | Identified exit to Upper Caves 32240 | -4/Factory | Identified exit to Armory 33087 | -4/Factory | Sucked down chute 33087 | -4/Factory | Entered Waste 33124 | -4/Waste | Spotted C-40 Crusher 33137 | -4/Waste | Destroyed C-40 Crusher 33147 | -4/Waste | Destroyed C-40 Crusher 33161 | -4/Waste | Found Damper Plating 33189 | -4/Waste | Found Damper Plating 33251 | -4/Waste | Spotted C-40 Crusher 33255 | -4/Waste | Destroyed C-40 Crusher 33258 | -4/Waste | Spotted C-40 Crusher 33267 | -4/Waste | Destroyed C-40 Crusher 33272 | -4/Waste | Spotted C-40 Crusher 33284 | -4/Waste | Destroyed C-40 Crusher 33287 | -4/Waste | Spotted C-40 Crusher 33289 | -4/Waste | Destroyed C-40 Crusher 33308 | -4/Waste | Found Damper Plating 33311 | -4/Waste | Found Damper Plating 33366 | -4/Waste | Build established: Hauler-Skirmisher 33516 | -4/Waste | Discovered new exit (range 13) 33546 | -4/Waste | Entered Factory 34062 | -4/Factory | Repaired Broken Adv. Weapon Cycler? 34364 | -4/Factory | Fabricated Exp. Terrain Scanner (x1) 34427 | -4/Factory | Discovered new exit (range 29) 34810 | -4/Factory | Entered Armory 35160 | -4/Armory | Fabricated Imp. KE Penetrator (x1) 35336 | -4/Armory | Fabricated Imp. KE Penetrator? 35482 | -4/Armory | Build established: Hauler-Mutant 36074 | -4/Armory | Spotted B-86 Titan 36081 | -4/Armory | Destroyed B-86 Titan 36445 | -4/Armory | Discovered new exit (range 29) 36551 | -4/Armory | Discovered new exit (range 28) 36593 | -4/Armory | Fabricated Adv. Heavy Siege Treads (x2) 36655 | -4/Armory | Fabricated Exp. Terrain Scan Processor (x1) 36753 | -4/Armory | Entered Lab 36753 | -4/Lab | Discovered new exit (range 9) 36773 | -4/Lab | Hidden lab's door opened automatically 36773 | -4/Lab | Sensor layout match revealed 36774 | -4/Lab | Gained access to the hidden lab's interior 36924 | -4/Lab | Found Alien Artifact 36924 | -4/Lab | Identified Core Expander 36924 | -4/Lab | Installed Core Expander, added new Utility slot 36930 | -4/Lab | Found Integrated Reactor 36930 | -4/Lab | Installed Integrated Reactor, increased core energy generation (+10) 36998 | -4/Lab | Found Alien Artifact 37269 | -4/Lab | Found Prototype Hackware 37274 | -4/Lab | Found Prototype Protection 37274 | -4/Lab | Identified Hvy. Regenerative Plating 37948 | -4/Lab | Entered Research 37948 | -3/Research | Evolved 2 slots: Power x1, Utility x1 38068 | -3/Research | Identified Quantum Router 38069 | -3/Research | Identified exit to Quarantine 38069 | -3/Research | Identified exit to Research 38148 | -3/Research | Revision forces began assault on 0b10 38269 | -3/Research | Met up with Revision 17++ 38309 | -3/Research | Found Unknown Device 38486 | -3/Research | Identified Antimissile System 38648 | -3/Research | Research terminal network offline 39103 | -3/Research | Build established: Hacker-Mutant 39237 | -3/Research | Destroyed Striker 39242 | -3/Research | Destroyed Executioner 39269 | -3/Research | Spotted Executioner 39271 | -3/Research | Spotted Striker 39274 | -3/Research | Destroyed Executioner 39276 | -3/Research | Destroyed Striker 39475 | -3/Research | Spotted Striker 39479 | -3/Research | Destroyed Striker 39479 | -3/Research | Spotted Striker 39483 | -3/Research | Destroyed Striker 39588 | -3/Research | Spotted Striker 39593 | -3/Research | Destroyed Striker 39599 | -3/Research | Spotted Executioner 39605 | -3/Research | Destroyed Executioner 39784 | -3/Research | Spotted Striker 39924 | -3/Research | Spotted Executioner 39931 | -3/Research | Destroyed Executioner 40020 | -3/Research | Spotted Striker 40023 | -3/Research | Destroyed Striker 40197 | -3/Research | Spotted Striker 40210 | -3/Research | Destroyed Striker 40508 | -3/Research | Entered another Research area 40508 | -2/Research | Evolved 2 slots: Utility x2 40566 | -2/Research | Identified exit to Access 41800 | -2/Research | Entered Access 41800 | -1/Access | Evolved 2 slots: Utility x1, Weapon x1 42058 | -1/Access | Found Prototype Device 42623 | -1/Access | Discovered new exit (range 30) 42704 | -1/Access | Identified exit to Command 43300 | -1/Access | First assault squad dispatched 43353 | -1/Access | Destroyed 10 combat bots 43503 | -1/Access | Destroyed 16 combat bots 43506 | -1/Access | Identified Beam Splitter 43900 | -1/Access | Entered Command 44435 | -1/Command | First assault squad dispatched 45235 | -1/Command | High security lockdown imminent 45285 | -1/Command | Spotted Striker 45285 | -1/Command | Spotted Striker 45286 | -1/Command | Spotted Executioner 45286 | -1/Command | Spotted Striker 45290 | -1/Command | System corruption reached 10% 45296 | -1/Command | Destroyed Executioner 45299 | -1/Command | Destroyed Striker 45302 | -1/Command | Destroyed Striker 45303 | -1/Command | Destroyed Striker 45315 | -1/Command | High security lockdown engaged 45335 | -1/Command | Lost 4 parts (3u1w) 45336 | -1/Command | Destroyed 18 combat bots 45400 | -1/Command | Spotted Combat Programmer 45402 | -1/Command | Spotted M Guard 45403 | -1/Command | Destroyed M Guard 45410 | -1/Command | Spotted Combat Programmer 45413 | -1/Command | Destroyed M Guard 45426 | -1/Command | Destroyed Combat Programmer 45441 | -1/Command | Destroyed Combat Programmer 45441 | -1/Command | All MAIN.C guards destroyed 45471 | -1/Command | Found Prototype Device 45474 | -1/Command | Found Prototype Launcher 45480 | -1/Command | Found Prototype Energy Cannon 45489 | -1/Command | Identified AEGIS Remote Shield 45500 | -1/Command | Scanned by Researcher 45500 | -1/Command | Identified Ragnarok Missile Launcher 45502 | -1/Command | Destroyed Investigator 45523 | -1/Command | Spotted Executioner 45523 | -1/Command | Spotted Executioner 45525 | -1/Command | Destroyed Executioner 45532 | -1/Command | Destroyed Executioner 45553 | -1/Command | Found Prototype Reactor 45553 | -1/Command | Identified Zero-point Reactor 45556 | -1/Command | Found Hvy. Regenerative Plating 45559 | -1/Command | Found Prototype Device 45559 | -1/Command | Identified Thermal Barrier 45566 | -1/Command | Destroyed 16 combat bots 45572 | -1/Command | Identified Cld. Nova Cannon 45647 | -1/Command | Spotted Investigator 45648 | -1/Command | Spotted Striker 45650 | -1/Command | Destroyed Investigator 45660 | -1/Command | Spotted Striker 45660 | -1/Command | Spotted Executioner 45664 | -1/Command | Destroyed Striker 45667 | -1/Command | Destroyed Executioner 45669 | -1/Command | Destroyed Striker 45713 | -1/Command | Destroyed 24 combat bots 45802 | -1/Command | Spotted Striker 45802 | -1/Command | Spotted Striker 45802 | -1/Command | Destroyed Striker 45803 | -1/Command | Spotted Executioner 45806 | -1/Command | Destroyed Striker 45815 | -1/Command | Destroyed Executioner 45857 | -1/Command | Destroyed 33 combat bots 45992 | -1/Command | Build established: Scavenger-Tank 46063 | -1/Command | Spotted Executioner 46065 | -1/Command | Spotted Striker 46065 | -1/Command | Spotted Executioner 46065 | -1/Command | Spotted Striker 46066 | -1/Command | Spotted Striker 46067 | -1/Command | Spotted Executioner 46067 | -1/Command | Destroyed Striker 46068 | -1/Command | Destroyed Executioner 46073 | -1/Command | Destroyed Striker 46074 | -1/Command | Destroyed Striker 46078 | -1/Command | Destroyed Executioner 46079 | -1/Command | Destroyed Executioner 46088 | -1/Command | Destroyed Striker 46089 | -1/Command | Spotted Striker 46094 | -1/Command | Destroyed Striker 46115 | -1/Command | Destroyed 22 combat bots 46366 | -1/Command | Build established: Scavenger-Mutant 47159 | -1/Command | Spotted Executioner 47160 | -1/Command | Spotted Executioner 47161 | -1/Command | Spotted Striker 47162 | -1/Command | Spotted Striker 47162 | -1/Command | Destroyed Executioner 47162 | -1/Command | Destroyed Executioner 47164 | -1/Command | Destroyed Striker 47166 | -1/Command | Spotted Executioner 47166 | -1/Command | Destroyed Striker 47169 | -1/Command | Destroyed Executioner 47199 | -1/Command | Destroyed 12 combat bots 47338 | -1/Command | System corruption reached 30% 47414 | -1/Command | Lost 7 parts (1n4u2w) 47420 | -1/Command | Destroyed 74 combat bots 47633 | -1/Command | Build established: Hauler-Mutant 50074 | -1/Command | Build established: Hauler-Tank 53179 | -1/Command | Found Unknown Launcher 53179 | -1/Command | Identified Fusion Bomb Launcher 53523 | -1/Command | Build established: Hauler-Mutant 53722 | -1/Command | Found Quantum Capacitor 53910 | -1/Command | Phase Generator disabled 54359 | -1/Command | Discovered new exit (range 23) 54649 | -1/Command | Build established: Hauler-Skirmisher 54995 | -1/Command | Spotted Alpha 7 54997 | -1/Command | Spotted Striker 54999 | -1/Command | Spotted Executioner 55001 | -1/Command | Destroyed Striker 55004 | -1/Command | Destroyed Executioner 55005 | -1/Command | Destroyed Alpha 7 55106 | -1/Command | Spotted Alpha 7 55107 | -1/Command | Spotted Striker 55110 | -1/Command | Destroyed Striker 55111 | -1/Command | Spotted Executioner 55115 | -1/Command | Destroyed Executioner 55125 | -1/Command | Destroyed Alpha 7 55207 | -1/Command | Spotted Executioner 55214 | -1/Command | Spotted Executioner 55224 | -1/Command | Destroyed Executioner 55243 | -1/Command | Destroyed Executioner 55263 | -1/Command | Spotted B-99 Colossus 55278 | -1/Command | Build established: Scavenger-Mutant 55283 | -1/Command | Destroyed B-99 Colossus 55301 | -1/Command | Spotted B-99 Colossus 55322 | -1/Command | Destroyed B-99 Colossus 55375 | -1/Command | Found Prototype Ballistic Gun 55375 | -1/Command | Identified Multirail 55379 | -1/Command | Found Multirail 55617 | -1/Command | Found Unknown Protection 55617 | -1/Command | Identified Hvy. Reflective Plating 56558 | -1/Command | Met MAIN.C 56562 | -1/Command | 0b10 Conduit disabled 56595 | -1/Command | Destroyed MAIN.C Shell 56598 | -1/Command | MAIN.C activated Command garrisons 56630 | -1/Command | Destroyed MAIN.C 56646 | -1/Command | Found Zero-point Reactor 56650 | -1/Command | Found Prototype Protection 56650 | -1/Command | Identified Exp. Powered Armor 56654 | -1/Command | Found Exp. Powered Armor 56659 | -1/Command | Found Beam Splitter 56669 | -1/Command | Found Prototype Protection 56669 | -1/Command | Identified Centrium Heavy Armor Plating 59845 | -1/Command | Discovered new exit (range 12) 59866 | *** | Establishing 0b11! Last Messages --------------- 59598_ Dropped Arm. Heavy Treads. 59599_ Acquired Arm. Heavy Treads. 59662_ Acquired 21 matter. 59699_ System corrupted: Matter fused (-8). 59701_ Acquired 30 matter. 59755_ System corrupted: Heat flow error (+179). 59762_ Acquired 6 matter. 59771_ Dropped Multirail. 59773_ Acquired 10 matter. 59775_ Acquired Multirail. 59777_ IW2|PKTUEGCQXBYEOEQ2U9://ADWC8HFB 59780_ Acquired Multirail. 59783_ EMDS Slug penetrates Wave Inhibitor. 59783_ Wave Inhibitor disabled. 59784_ Acquired 10 matter. 59818_ System corrupted: Component data lost. 59845_ EXIT=FOUND [Achievement: Rambo] [Achievement: Victory By Combat] [Achievement: Death Machine] Map ----- +----------------------------------------------------+ | """ # #????????????????????# #?????????? | | # #????????????????????# #?????????? | | # ##???????????########## #???####### | | ######### #????????????# #???# """" | | #??????# #????????????# #???# " | | #??????# #????????????# #???# """" | | #??????# #????????????# "" #???#" """" | | #??????# #????????????# """ #???#" " | | #??????# ############### T" #???#"" "" | | #??????# ## ! # """ #???#"" "" | | #???#### ## + "" #???# " "" | | ##### ## # #???# " | | ## # #???# " = | | = ## % #???#"" " | | %[ #?#+########### == #???#" ] | | ! ####### ######????+ == #???# | | ] #????# ^ == #???# | | #????# ##### | | #????+ | | # | | # # | | ########### ####### #### "" | | ]! #?????????# #?????###??# " | | ############ !! #???#####?####??????????# " | | ???????????# %! #???# #???????????????####### | | ??########## % ##### @ #?????????????????????? | | =% #?????????????????????? | | [ | #?????????????????????? | | ##+##############+##########?????????????????????? | | ??????????????? ?????????????????????????????? | | ????????????? ???????????????????????????? | | ??????????? #??????????????????????????? | | ?????????# "" #??????????????????????????? | | ?????????# """" #??????????????????????????? | | ?????????# """" #??????????????????????????? | | ?????????# "" #??????????????????????????? | | ?????????# #??????????????????????????? | | ?????????# ??? #??????????????????????????? | | ?????????# ???? #??????????????????????????? | | ?????????# ????? ? #??????????????????????????? | | ?????????# ???????? #??????????????????????????? | | ??????????#??????????##??????????????????????????? | | ?????????????????????????????????????????????????? | | ?????????????????????????????????????????????????? | | ?????????????????????????????????????????????????? | | ?????????????????????????????????????????????????? | | ?????????????????????????????????????????????????? | | ?????????????????????????????????????????????????? | | ?????????????????????????????????????????????????? | | ?????????????????????????????????????????????????? | +----------------------------------------------------+ Best States ------------- Heat Dissipation 128 Energy Generation 77 Energy Capacity 2490 Matter Stores 550 Matter Capacity 800 Sight Range 16 Robot Scan Range 22 Terrain Scan Range 30 Terrain Scan Density 1010 Jamming Range 16 Additional Mass Support 9 Armor Coverage 2400 Resistance: KI 25 Resistance: TH 75 Resistance: EM 90 Weapon Shielding 66 Point Defense Rating 240 Thermal Conversion 90 Weapon Cycling 25 Evasion (%) 40 Targeting Accuracy 12 Melee Accuracy 12 Armor Integrity Analysis 90 Recoil Reduction 4 Matter Filtering 30 Particle Charging 25 Kinecelleration 40 Overload Amplification 75 Salvage Targeting 2 Stasis Canceling 2 Offensive Hacking 12 Defensive Hacking 25 Item Schematics ----------------- KE Penetrator | -7/Factory | Hacked Lrn. Terrain Scanner | -6/Factory | Hacked Hcp. Storage Unit | -6/Factory | Hacked Hyp. Railgun | -6/Factory | Scanalyzed Imp. KE Penetrator | -5/Factory | Scanalyzed Assault Drone Bay | -5/Zhirov | Free Exp. Heat Sink | -5/Zhirov | Free Exp. Optical Array | -5/Zhirov | Free Imp. Arc Thrower | -5/Zhirov | Free Exp. Terrain Scanner | -4/Factory | Hacked Biometal Heavy Treads | -4/Armory | Hacked Exp. Terrain Scan Processor | -4/Armory | Hacked Robot Schematics ------------------ None Fabricated ------------ Hcp. Storage Unit | x1 | -6/Factory Hyp. Railgun | x2 | -6/Factory Imp. KE Penetrator | x1 | -5/Factory Imp. KE Penetrator | x1 | -5/Factory Exp. Terrain Scanner | x1 | -4/Factory Imp. KE Penetrator | x1 | -4/Armory Imp. KE Penetrator | x1 | -4/Armory Adv. Heavy Siege Treads | x2 | -4/Armory | Preloaded Exp. Terrain Scan Processor | x1 | -4/Armory Alien Tech Used ----------------- Integrated Reactor Core Expander Achievements -------------- Boltbath Death Machine No Explosion For You Rambo Victory By Combat Challenges ------------ None Game ------ Seed CryofiberReactiveAnalyzer Manual? 0 Play Time 13:38:41 Cumulative 260.2 hours Start 2020.12.29 @ 16:58:51 End 2021.01.03 @ 22:53:01 Sessions 1 Manual Loads 0 Difficulty Rogue Special Mode None Game No. 129 Rogue 129 Adventurer 0 Explorer 0 Win Type 1 Total 3 Types 1/2/0/0/0/0/0/0/0 Lore% 68 Gallery% 74 Achievement% 60 Wizard Run 0 Options --------- ASCII 1 Keyboard 1 Movement Vi Keybinds 0 Fullscreen 1 Font 16/Terminus Map View 75x55 Tactical HUD 1 Map Filters NONE Filters NONE Steam 1 RUN: 388f96ea-841f-4519-b7b0-5938019cf38b